Body Name,Body,Service Level,Expense Type,Expense Code,Narrative,Date,Transaction Number,Amount,Capital and Revenue,Supplier Name,Supplier ID
South Ribble Borough Council,http://statistics.data.gov.uk/id/local-authority/30UE,Capital,Capital Grant,C570,DFG WORK FOR ADAPTATION FOR LEVEL ACCESS SHOWER AT ADDRESS REDACTED AS PER SRBC PLANS AND QUOTE SUPPLIED,27/05/2022,0000478833,"2,189.36",Revenue,A CONNOLLY LTD,
South Ribble Borough Council,http://statistics.data.gov.uk/id/local-authority/30UE,Capital,Cap Vehicles,C440,24x 1100ltr card/paper bins as per quote dated 25th March 2022 version 2 & delivery.,06/05/2022,0000478192,"3,427.80",Revenue,A&C Weber UK Ltd,
South Ribble Borough Council,http://statistics.data.gov.uk/id/local-authority/30UE,Community Safety Services,Maintenance & Repair,4013,Maintenance of Closed Circuit Television System  Charge for the period 5.1.22 - 4.1.23 Bannister Drive Leyland,13/05/2022,0000478385,429.68,Revenue,ADT FIRE & SECURITY PLC,
South Ribble Borough Council,http://statistics.data.gov.uk/id/local-authority/30UE,Central Support Services,Reactive Repair & Maintenance,2020,To remove existing heating pressurisation unit and replace with new Mikrofill 3 pressurisation unit at Moss Side Ind Unit as per NAME REDACTED,20/05/2022,0000478709,"1,750.00",Revenue,Ainscoe Plumbing & Heating Ltd,
South Ribble Borough Council,http://statistics.data.gov.uk/id/local-authority/30UE,Central Support Services,Other Fees,4520,CTS SUPPORT SCHEME 2022/23,20/05/2022,0000478583,550.00,Revenue,AIREY CONSULTANCY LTD T/A ACS LTD,
South Ribble Borough Council,http://statistics.data.gov.uk/id/local-authority/30UE,Capital,Cap Contract Payment,C230,Outstanding defects retention payment - Worden Park Conservatory,06/05/2022,0000478204,"2,850.00",Revenue,Alitex Ltd,
South Ribble Borough Council,http://statistics.data.gov.uk/id/local-authority/30UE,Local Tax Collection,Bank Charges,4811,post office,13/05/2022,0000478468,630.66,Revenue,ALLPAY LTD,
South Ribble Borough Council,http://statistics.data.gov.uk/id/local-authority/30UE,Local Tax Collection,Bank Charges,4811,paypoint,13/05/2022,0000478468,74.18,Revenue,ALLPAY LTD,
South Ribble Borough Council,http://statistics.data.gov.uk/id/local-authority/30UE,Local Tax Collection,Bank Charges,4811,webconn,13/05/2022,0000478468,46.00,Revenue,ALLPAY LTD,
South Ribble Borough Council,http://statistics.data.gov.uk/id/local-authority/30UE,Central Support Services,Lease Car Rental,1131,VIS REDACTED,13/05/2022,0000477885,"3,458.23",Revenue,Alphabet (Uk) Fleet Management Ltd,
South Ribble Borough Council,http://statistics.data.gov.uk/id/local-authority/30UE,Building Control,Refunded Income,485R,Refund of Building Control certificate fee,13/05/2022,0000478200,300.00,Revenue,Andrew Bunce,
South Ribble Borough Council,http://statistics.data.gov.uk/id/local-authority/30UE,Recreation & Sport,Water Charges(Metered),2511,7/3 to 6/4/22,13/05/2022,0000478327,"1,339.64",Revenue,Anglian Water Business (National) t/as Wave Utilit,
South Ribble Borough Council,http://statistics.data.gov.uk/id/local-authority/30UE,Recreation & Sport,Water Charges(Metered),2511,7/3 to 6/4/22,13/05/2022,0000478329,949.02,Revenue,Anglian Water Business (National) t/as Wave Utilit,
South Ribble Borough Council,http://statistics.data.gov.uk/id/local-authority/30UE,Recreation & Sport,Water Charges(Metered),2511,7/3 to 6/4/22,13/05/2022,0000478330,902.78,Revenue,Anglian Water Business (National) t/as Wave Utilit,
South Ribble Borough Council,http://statistics.data.gov.uk/id/local-authority/30UE,Recreation & Sport,Water Charges(Metered),2511,7/3 to 6/4/22,13/05/2022,0000478331,337.83,Revenue,Anglian Water Business (National) t/as Wave Utilit,
South Ribble Borough Council,http://statistics.data.gov.uk/id/local-authority/30UE,Capital,Capital Grant,C570,DFG WORK FOR ADAPTATION TO LEVEL ACCESS SHOWER AT ADDRESS REDACTED PER SRBC SPECIFICATION & QUOTE SUPPLIED,06/05/2022,0000478262,"4,958.39",Revenue,APG DOMESTIC SERVICES,
South Ribble Borough Council,http://statistics.data.gov.uk/id/local-authority/30UE,Central Support Services,Clothing and Uniforms,4410,HI-VIS  WATERPROOF TROUSERS  - LARGE 1894205,20/05/2022,0000478597,52.28,Revenue,ARCO,
South Ribble Borough Council,http://statistics.data.gov.uk/id/local-authority/30UE,Central Support Services,Clothing and Uniforms,4410,BOOTS � ROCKFALL EBONITE -SIZE 8 B800153,20/05/2022,0000478597,106.20,Revenue,ARCO,
South Ribble Borough Council,http://statistics.data.gov.uk/id/local-authority/30UE,Central Support Services,Clothing and Uniforms,4410,BOOTS � ROCKFALL EBONITE -SIZE 10  B800145,20/05/2022,0000478597,106.20,Revenue,ARCO,
South Ribble Borough Council,http://statistics.data.gov.uk/id/local-authority/30UE,Central Support Services,Clothing and Uniforms,4410,BOOTS � ROCKFALL EBONITE -SIZE 11  B800146,20/05/2022,0000478597,106.20,Revenue,ARCO,
South Ribble Borough Council,http://statistics.data.gov.uk/id/local-authority/30UE,Capital,Cap Contract Payment,C230,120No. Artifical trailing plants as per attached list of 20 No. of six different species,27/05/2022,0000478659,"1,250.80",Revenue,Arti Green Ltd,
South Ribble Borough Council,http://statistics.data.gov.uk/id/local-authority/30UE,Central Support Services,Reactive Repair & Maintenance,2020,Close button has dropped out & the internal micro-switch is no longer operating the shutter. existing control panel will need replacing ,27/05/2022,0000478761,295.00,Revenue,AVALON DOORS & AWNINGS LTD,
South Ribble Borough Council,http://statistics.data.gov.uk/id/local-authority/30UE,Central Support Services,Reactive Repair & Maintenance,2020,LABOUR,27/05/2022,0000478761,100.00,Revenue,AVALON DOORS & AWNINGS LTD,
South Ribble Borough Council,http://statistics.data.gov.uk/id/local-authority/30UE,Recreation & Sport,Improvements to Premises,2023,"Moss Side Community Centre Installation of CCTV system, 8 cameras quoted to cover all angles of premises. ",13/05/2022,0000478264,"3,271.16",Revenue,BELEC ELECTRICAL LTD,
South Ribble Borough Council,http://statistics.data.gov.uk/id/local-authority/30UE,Recreation & Sport,Improvements to Premises,2023,Moss Side Community Centre Installation of security lighting around the premises. Cherry picker / platform hire. ,13/05/2022,0000478266,"2,473.47",Revenue,BELEC ELECTRICAL LTD,
South Ribble Borough Council,http://statistics.data.gov.uk/id/local-authority/30UE,Recreation & Sport,Improvements to Premises,2023,Moss Side Community Centre Installation of new fire alarm system to incorporate the existing door exit mags.,13/05/2022,0000478267,"2,450.96",Revenue,BELEC ELECTRICAL LTD,
South Ribble Borough Council,http://statistics.data.gov.uk/id/local-authority/30UE,Central Support Services,Reactive Repair & Maintenance,2020,Replace 5 X lights in Ground Floor Kitchen to LEDs as per NAME REDACTED,13/05/2022,0000478269,350.00,Revenue,BELEC ELECTRICAL LTD,
South Ribble Borough Council,http://statistics.data.gov.uk/id/local-authority/30UE,Recreation & Sport,Dev ftarget Sports-Coaching,4894,"Raleigh Stowaway 7 x2, Raleigh Array Step Thru x1, Raleigh Stowaway Folder x1, Pannier Bag, Insurance Approved D locks",20/05/2022,0000478694,"1,665.34",Revenue,BILL NICKSON CYCLES,
South Ribble Borough Council,http://statistics.data.gov.uk/id/local-authority/30UE,Recreation & Sport,Professional Fees,4510,"Raleigh Stowaway 7 x2, Raleigh Array Step Thru x1, Raleigh Stowaway Folder x1, Pannier Bag, Insurance Approved D locks",20/05/2022,0000478694,"1,667.99",Revenue,BILL NICKSON CYCLES,
South Ribble Borough Council,http://statistics.data.gov.uk/id/local-authority/30UE,Development Control,Professional Fees,4510,Heritage services Q4 and mileage costs,13/05/2022,0000478244,537.15,Revenue,BLACKBURN WITH DARWEN BOROUGH COUNCIL,
South Ribble Borough Council,http://statistics.data.gov.uk/id/local-authority/30UE,Open Spaces,Operational Equip & Tools,4010,"1M podium step, Small company set of safety inspection tags",20/05/2022,0000478715,348.31,Revenue,BPS Access Solutions Ltd,
South Ribble Borough Council,http://statistics.data.gov.uk/id/local-authority/30UE,Central Support Services,Materials General,4040,"1x brush motor, RV14 DTZ, JFC18368 ",20/05/2022,0000478708,464.91,Revenue,Bucher Municipal Ltd,
South Ribble Borough Council,http://statistics.data.gov.uk/id/local-authority/30UE,Regulatory Services,Operational Equip & Tools,4010,Subscribing to the BRE Excess Cold Calculator  22/23 per NAME REDACTED,20/05/2022,0000478374,"1,000.00",Revenue,BUILDING RESEARCH ESTABLISHMENT LTD,
South Ribble Borough Council,http://statistics.data.gov.uk/id/local-authority/30UE,Community Development,Core Fund,4861,Wooden sleepers,06/05/2022,0000478373,408.78,Revenue,C & W BERRY LTD,
South Ribble Borough Council,http://statistics.data.gov.uk/id/local-authority/30UE,Open Spaces,GM Refurbishment,4657,12no. ply boards,20/05/2022,0000478566,300.15,Revenue,C & W BERRY LTD,
South Ribble Borough Council,http://statistics.data.gov.uk/id/local-authority/30UE,Open Spaces,GM Refurbishment,4657,Path Edgings Chamber Rings Chamber Cover,20/05/2022,0000478674,337.61,Revenue,C & W BERRY LTD,
South Ribble Borough Council,http://statistics.data.gov.uk/id/local-authority/30UE,Central Support Services,Hiring Expenses,3212,Hire of RCV SJ65 GBO April 2022,20/05/2022,0000478684,"3,780.00",Revenue,C P DAVIDSON & SONS LTD,
South Ribble Borough Council,http://statistics.data.gov.uk/id/local-authority/30UE,Central Support Services,Hiring Expenses,3212,Hire of RCV SJ65 GBO 1.5.22 - 10.5.22,27/05/2022,0000478753,"1,260.00",Revenue,C P DAVIDSON & SONS LTD,
South Ribble Borough Council,http://statistics.data.gov.uk/id/local-authority/30UE,Central Support Services,Planned Annual Repair & Maintenance,2021,Annual Contract for UPS 2022/2023 for Civic Centre and MSD as Per NAME REDACTED MSM 15-T4/10-T4 504336/504337 Civic Centre ,13/05/2022,0000478290,"1,157.00",Revenue,Central Power Services ltd,
South Ribble Borough Council,http://statistics.data.gov.uk/id/local-authority/30UE,Central Support Services,Planned Annual Repair & Maintenance,2021,Riello SDH/Dialog Plus/Eaton 504338/504339/ ref 306847  UPS  504340 Titan Way PR26 7QR,13/05/2022,0000478290,"1,157.00",Revenue,Central Power Services ltd,
South Ribble Borough Council,http://statistics.data.gov.uk/id/local-authority/30UE,Central Support Services,Planned Annual Repair & Maintenance,2021,"Service ref 306846 Equipment to be included in the Service contract,  Civic Centre PR25 1DH as per NAME REDACTED",13/05/2022,0000478291,989.50,Revenue,Central Power Services ltd,
South Ribble Borough Council,http://statistics.data.gov.uk/id/local-authority/30UE,Development Control,Consultancy Fees,4541,TPO consultancy work - enforcement.,13/05/2022,0000478407,675.00,Revenue,Christopher Binney Consultant,
South Ribble Borough Council,http://statistics.data.gov.uk/id/local-authority/30UE,Recreation & Sport,Professional Fees,4510,Meditation Teacher Training for NAME REDACTED,06/05/2022,0000478369,650.00,Revenue,Chrysalis Yoga,
South Ribble Borough Council,http://statistics.data.gov.uk/id/local-authority/30UE,Homelessness,Temporary Accommodation,5311,NAME REDACTED 7 nights 25/04/2022 - 02/05/2022,06/05/2022,0000478364,315.00,Revenue,CLAREMONT HOTEL,
South Ribble Borough Council,http://statistics.data.gov.uk/id/local-authority/30UE,Homelessness,Contributions to Other Bodies,4730,NAME REDACTED 7 nights 25/04/2022 - 02/05/2022,06/05/2022,0000478364,315.00,Revenue,CLAREMONT HOTEL,
South Ribble Borough Council,http://statistics.data.gov.uk/id/local-authority/30UE,Homelessness,Temporary Accommodation,5311,NAME REDACTED 7 nights 25/04/2022 - 02/05/2022,06/05/2022,0000478364,315.00,Revenue,CLAREMONT HOTEL,
South Ribble Borough Council,http://statistics.data.gov.uk/id/local-authority/30UE,Homelessness,Temporary Accommodation,5311,NAME REDACTED 7 nights 25/04/2022 - 02/05/2022,06/05/2022,0000478364,525.00,Revenue,CLAREMONT HOTEL,
South Ribble Borough Council,http://statistics.data.gov.uk/id/local-authority/30UE,Homelessness,Temporary Accommodation,5311,NAME REDACTED 7 nights 25/04/2022 - 02/05/2022,06/05/2022,0000478364,525.00,Revenue,CLAREMONT HOTEL,
South Ribble Borough Council,http://statistics.data.gov.uk/id/local-authority/30UE,Homelessness,Temporary Accommodation,5311,NAME REDACTED 7 nights 25/04/2022 - 02/05/2022,06/05/2022,0000478364,696.50,Revenue,CLAREMONT HOTEL,
South Ribble Borough Council,http://statistics.data.gov.uk/id/local-authority/30UE,Homelessness,Temporary Accommodation,5311,NAME REDACTED 7 nights 02/05/2022 - 09/05/2022,13/05/2022,0000478438,315.00,Revenue,CLAREMONT HOTEL,
South Ribble Borough Council,http://statistics.data.gov.uk/id/local-authority/30UE,Homelessness,Temporary Accommodation,5311,NAME REDACTED 7 nights 02/05/2022 - 09/05/2022,13/05/2022,0000478438,696.50,Revenue,CLAREMONT HOTEL,
South Ribble Borough Council,http://statistics.data.gov.uk/id/local-authority/30UE,Homelessness,Temporary Accommodation,5311,NAME REDACTED 7 nights 02/05/2022 - 09/05/2022,13/05/2022,0000478438,525.00,Revenue,CLAREMONT HOTEL,
South Ribble Borough Council,http://statistics.data.gov.uk/id/local-authority/30UE,Homelessness,Temporary Accommodation,5311,NAME REDACTED 7 nights 02/05/2022 - 09/05/2022,13/05/2022,0000478438,315.00,Revenue,CLAREMONT HOTEL,
South Ribble Borough Council,http://statistics.data.gov.uk/id/local-authority/30UE,Homelessness,Contributions to Other Bodies,4730,NAME REDACTED 7 nights 02/05/2022 - 09/05/2022,13/05/2022,0000478438,315.00,Revenue,CLAREMONT HOTEL,
South Ribble Borough Council,http://statistics.data.gov.uk/id/local-authority/30UE,Homelessness,Temporary Accommodation,5311,NAME REDACTED 7 nights 19/04/2022 - 26/04/2022,13/05/2022,0000478439,315.00,Revenue,CLAREMONT HOTEL,
South Ribble Borough Council,http://statistics.data.gov.uk/id/local-authority/30UE,Homelessness,Temporary Accommodation,5311,NAME REDACTED 5 nights 20/04/2022 - 25/04/2022,13/05/2022,0000478439,375.00,Revenue,CLAREMONT HOTEL,
South Ribble Borough Council,http://statistics.data.gov.uk/id/local-authority/30UE,Homelessness,Temporary Accommodation,5311,NAME REDACTED 7 nights 09/05/2022-16/05/2022,27/05/2022,0000478748,315.00,Revenue,CLAREMONT HOTEL,
South Ribble Borough Council,http://statistics.data.gov.uk/id/local-authority/30UE,Homelessness,Temporary Accommodation,5311,NAME REDACTED & children 7 nights 09/05/2022-16/05/2022,27/05/2022,0000478748,696.50,Revenue,CLAREMONT HOTEL,
South Ribble Borough Council,http://statistics.data.gov.uk/id/local-authority/30UE,Homelessness,Temporary Accommodation,5311,NAME REDACTED partner & child 7 nights 09/05/2022-16/05/2022,27/05/2022,0000478748,525.00,Revenue,CLAREMONT HOTEL,
South Ribble Borough Council,http://statistics.data.gov.uk/id/local-authority/30UE,Homelessness,Contributions to Other Bodies,4730,NAME REDACTED 7 nights 09/05/2022-16/05/2022,27/05/2022,0000478748,315.00,Revenue,CLAREMONT HOTEL,
South Ribble Borough Council,http://statistics.data.gov.uk/id/local-authority/30UE,Homelessness,Temporary Accommodation,5311,NAME REDACTED and children 7 nights 16/05/2022 - 23/05/2022,27/05/2022,0000478842,696.50,Revenue,CLAREMONT HOTEL,
South Ribble Borough Council,http://statistics.data.gov.uk/id/local-authority/30UE,Homelessness,Temporary Accommodation,5311,NAME REDACTED partner and child 7 nights 16/05/2022 - 23/05/2022,27/05/2022,0000478842,525.00,Revenue,CLAREMONT HOTEL,
South Ribble Borough Council,http://statistics.data.gov.uk/id/local-authority/30UE,Homelessness,Temporary Accommodation,5311,NAME REDACTED 4 nights 19/05/2022 - 23/05/2022,27/05/2022,0000478842,180.00,Revenue,CLAREMONT HOTEL,
South Ribble Borough Council,http://statistics.data.gov.uk/id/local-authority/30UE,Homelessness,Contributions to Other Bodies,4730,NAME REDACTED 7 nights 16/05/2022 - 23/05/2022,27/05/2022,0000478842,315.00,Revenue,CLAREMONT HOTEL,
South Ribble Borough Council,http://statistics.data.gov.uk/id/local-authority/30UE,Homelessness,Temporary Accommodation,5311,NAME REDACTED 7 nights 16/05/2022 - 23/05/2022 ,27/05/2022,0000478842,315.00,Revenue,CLAREMONT HOTEL,
South Ribble Borough Council,http://statistics.data.gov.uk/id/local-authority/30UE,Homelessness,Temporary Accommodation,5311,NAME REDACTED 7 nights 16/05/2022 - 23/05/2022,27/05/2022,0000478842,315.00,Revenue,CLAREMONT HOTEL,
South Ribble Borough Council,http://statistics.data.gov.uk/id/local-authority/30UE,Homelessness,Temporary Accommodation,5311,NAME REDACTED 7 nights 12/05/2022 - 19/05/2022,27/05/2022,0000478843,315.00,Revenue,CLAREMONT HOTEL,
South Ribble Borough Council,http://statistics.data.gov.uk/id/local-authority/30UE,Homelessness,Contributions to Other Bodies,4730,NAME REDACTED 7 nights 18/04/2022 - 25/04/20,27/05/2022,0000478844,315.00,Revenue,CLAREMONT HOTEL,
South Ribble Borough Council,http://statistics.data.gov.uk/id/local-authority/30UE,Homelessness,Temporary Accommodation,5311,NAME REDACTED 7 nights 18/04/2022 - 25/04/20,27/05/2022,0000478844,315.00,Revenue,CLAREMONT HOTEL,
South Ribble Borough Council,http://statistics.data.gov.uk/id/local-authority/30UE,Homelessness,Temporary Accommodation,5311,NAME REDACTED 7 nights 18/04/2022 - 25/04,27/05/2022,0000478844,696.50,Revenue,CLAREMONT HOTEL,
South Ribble Borough Council,http://statistics.data.gov.uk/id/local-authority/30UE,Homelessness,Temporary Accommodation,5311,NAME REDACTED 7 nights 18/04/2022 - 25/04/20,27/05/2022,0000478844,525.00,Revenue,CLAREMONT HOTEL,
South Ribble Borough Council,http://statistics.data.gov.uk/id/local-authority/30UE,Cash and Cash Equivalents,Amount Paid,0030,"60 X DINNERS, 3 LIGHT MEALS AND 9 CHEESE PLATTERS ON 20 MAY 2022 FOR THE MAYOR`S BANQUET",20/05/2022,0000478714,"2,057.50",Revenue,CLASSIC LODGES,
South Ribble Borough Council,http://statistics.data.gov.uk/id/local-authority/30UE,Democratic Represent and  Mgnt,Room Hire and Events,4630,PLEASE PROVIDE SIGN LANGUAGE SERVICES: Wednesday 13th October 2021 Council Meeting in the Community ,20/05/2022,0000478686,433.00,Revenue,CO SIGN LTD,
South Ribble Borough Council,http://statistics.data.gov.uk/id/local-authority/30UE,Central Support Services,Computer Equipment,4241,sign filming with interpreter,20/05/2022,0000478688,565.00,Revenue,CO SIGN LTD,
South Ribble Borough Council,http://statistics.data.gov.uk/id/local-authority/30UE,Capital,Cap Contract Payment,C230,"For the provision of works to the pavilion, car park extension and associated works at Bamber Bridge sports hub",06/05/2022,0000478042,"180,745.56",Revenue,Code Building Solutions Limited,
South Ribble Borough Council,http://statistics.data.gov.uk/id/local-authority/30UE,Community Development,Professional Fees,4510,Easter Camps for HAF,06/05/2022,0000478365,"1,440.00",Revenue,Community Network and Outreach,
South Ribble Borough Council,http://statistics.data.gov.uk/id/local-authority/30UE,Community Development,Miscellaneous Expenses,4851,Covid Thankyou event,27/05/2022,0000478672,605.10,Revenue,Crankshaft Brewery Limited,
South Ribble Borough Council,http://statistics.data.gov.uk/id/local-authority/30UE,Local Tax Collection,Postage General,4291,POSTAGE FOR APRIL TO SEPT 2022,06/05/2022,0000478202,488.05,Revenue,CRITIQOM,
South Ribble Borough Council,http://statistics.data.gov.uk/id/local-authority/30UE,Local Tax Collection,Postage General,4291,POSTAGE FOR APRIL TO SEPT 2022,06/05/2022,0000478325,503.39,Revenue,CRITIQOM,
South Ribble Borough Council,http://statistics.data.gov.uk/id/local-authority/30UE,Development Control,Professional Fees,4510,Printing and posting out of large neighbour consultations for planning applications - including Pickerings farm appeal and Farington Business Park.,20/05/2022,0000478491,299.32,Revenue,CRITIQOM,
South Ribble Borough Council,http://statistics.data.gov.uk/id/local-authority/30UE,Local Tax Collection,Postage General,4291,POSTAGE FOR APRIL TO SEPT 2022,20/05/2022,0000478527,"1,236.61",Revenue,CRITIQOM,
South Ribble Borough Council,http://statistics.data.gov.uk/id/local-authority/30UE,Local Tax Collection,Postage General,4291,POSTAGE FOR APRIL TO SEPT 2022,27/05/2022,0000478804,472.38,Revenue,CRITIQOM,
South Ribble Borough Council,http://statistics.data.gov.uk/id/local-authority/30UE,Local Tax Collection,Postage General,4291,POSTAGE FOR APRIL TO SEPT 2022,27/05/2022,0000478821,459.00,Revenue,CRITIQOM,
South Ribble Borough Council,http://statistics.data.gov.uk/id/local-authority/30UE,Capital,Cap Contract Payment,C230,Provision of Traffic and Transport Engineering Services to support the Leyland Town Deal Development,06/05/2022,0000478139,"6,640.00",Revenue,Curtins Consulting Ltd,
South Ribble Borough Council,http://statistics.data.gov.uk/id/local-authority/30UE,Central Support Services,Agency Staff,1121,HIRE OF CORPORATE SUPPORT ADMIN - NAME REDACTED - WEEK ENDING 27.2.2022,13/05/2022,0000478423,456.75,Revenue,Daniel Adams Recruitment Ltd,
South Ribble Borough Council,http://statistics.data.gov.uk/id/local-authority/30UE,Central Support Services,Agency Staff,1121,HIRE OF CORPORATE SUPPORT ADMIN - NAME REDACTED - WEEK ENDING 6.03.2022,13/05/2022,0000478440,472.50,Revenue,Daniel Adams Recruitment Ltd,
South Ribble Borough Council,http://statistics.data.gov.uk/id/local-authority/30UE,Central Support Services,External Contractors Charges,4570,Spec repair VA19KOX JFC18232,27/05/2022,0000478441,"1,200.00",Revenue,DAVAND LTD (trading as Longton Coachcraft),
South Ribble Borough Council,http://statistics.data.gov.uk/id/local-authority/30UE,Homelessness,Temporary Accommodation,5311,NAME REDACTED Anvil May 2022,20/05/2022,0000478596,340.00,Revenue,David Iddon & Corrina Kellett,
South Ribble Borough Council,http://statistics.data.gov.uk/id/local-authority/30UE,Central Support Services,Computer Equipment,4241,"Wyse 5470, Dell Multimedia Keyboard-KB216, Dell Optical Mouse-MS116 - Black 250",27/05/2022,0000477708,"25,200.00",Revenue,DELL CORPORATION LTD,
South Ribble Borough Council,http://statistics.data.gov.uk/id/local-authority/30UE,Central Support Services,Materials General,4040,1 filter kit & 1 hyd filter kit VK20 NVV JFC18242,06/05/2022,0000478100,613.67,Revenue,DENNIS EAGLE LTD,
South Ribble Borough Council,http://statistics.data.gov.uk/id/local-authority/30UE,Central Support Services,Materials General,4040,"1 REAR AIR BAG, 1 FILTER KIT, 1 HYD FILTER KIT VO21YVK JFC18265",06/05/2022,0000478164,815.67,Revenue,DENNIS EAGLE LTD,
South Ribble Borough Council,http://statistics.data.gov.uk/id/local-authority/30UE,Central Support Services,Materials General,4040,Engine Filter Kit DEFK 25C VO21 YVG JFC 18314,20/05/2022,0000478406,227.51,Revenue,DENNIS EAGLE LTD,
South Ribble Borough Council,http://statistics.data.gov.uk/id/local-authority/30UE,Central Support Services,Materials General,4040,Hydraulic Filter Kit DEFK 26EB VO21 YVG JFC 18314,20/05/2022,0000478406,563.29,Revenue,DENNIS EAGLE LTD,
South Ribble Borough Council,http://statistics.data.gov.uk/id/local-authority/30UE,Central Support Services,Materials General,4040,"Idler pulley, Belt, Belt tensioner, Tensioner bolt, Shocker bolt, Nut, Washer, VU60 HLE, JFC 18352",27/05/2022,0000478746,466.39,Revenue,DENNIS EAGLE LTD,
South Ribble Borough Council,http://statistics.data.gov.uk/id/local-authority/30UE,Central Support Services,Materials General,4040,"Filter kit, Hydraulic filter kit, VO21 YVL, JFC 18392",27/05/2022,0000478782,790.80,Revenue,DENNIS EAGLE LTD,
South Ribble Borough Council,http://statistics.data.gov.uk/id/local-authority/30UE,Surplus or Deficit on Trading,Reactive Repair & Maintenance,2020,"Fire Alarm Service Visit at Pearson House, Station Road. To provide a cost to carry out a service visit and clean the devices following false alarms.",27/05/2022,0000478846,360.00,Revenue,DES Electrical Services Ltd,
South Ribble Borough Council,http://statistics.data.gov.uk/id/local-authority/30UE,Democratic Represent and  Mgnt,Corp Subs to Professional Bodies,4720,ANNUAL MEMBERSHIP SUBSCRIPTION RENEWAL FOR 2022/2023,13/05/2022,0000478384,"2,944.00",Revenue,District Councils` Network,
South Ribble Borough Council,http://statistics.data.gov.uk/id/local-authority/30UE,Capital,Cap Contract Payment,C230,Rental of Temp caf� pod for Worden refurb  as per NAME REDACTED request ,20/05/2022,0000478523,"2,060.00",Revenue,DP STRUCTURES LTD,
South Ribble Borough Council,http://statistics.data.gov.uk/id/local-authority/30UE,Central Support Services,Lifts - R&M,2032,Annual contract for the maintenance of the lifts at the Civic Centre with visit dates to be done,20/05/2022,0000478671,447.50,Revenue,E A Foulds Limited,
South Ribble Borough Council,http://statistics.data.gov.uk/id/local-authority/30UE,Community Development,Core Fund,4861,Veranda roof and pavilion roof repairs further to February 2022 storm damage,13/05/2022,0000478572,700.00,Revenue,Eagle and Child Bowling Club C/O Mrs P Lewis,
South Ribble Borough Council,http://statistics.data.gov.uk/id/local-authority/30UE,Community Development,Miscellaneous Expenses,4851,To supply was and dry to all clothing donated through the St Catherine`s donation day,06/05/2022,0000478361,405.00,Revenue,EASY WASH T/A LAUNDERETTE,
South Ribble Borough Council,http://statistics.data.gov.uk/id/local-authority/30UE,Central Support Services,Computer Maintenance,4211,Yearly JALTEST CV Updates Licence 14.6.22 - 13.6.23,06/05/2022,0000478242,815.00,Revenue,Eclipse Automotive Technology Ltd,
South Ribble Borough Council,http://statistics.data.gov.uk/id/local-authority/30UE,Central Support Services,Computer Maintenance,4211,Yearly JALTEST Road sweeper Updates Licence 14.6.22 - 13.6.23,06/05/2022,0000478242,205.00,Revenue,Eclipse Automotive Technology Ltd,
South Ribble Borough Council,http://statistics.data.gov.uk/id/local-authority/30UE,Central Support Services,Computer Maintenance,4211,Eclipse Vehicle Diagnostic & IT support 14.6.22 - 13.6.23,06/05/2022,0000478242,365.00,Revenue,Eclipse Automotive Technology Ltd,
South Ribble Borough Council,http://statistics.data.gov.uk/id/local-authority/30UE,Capital,Cap Contract Payment,C230,8No. Platipus root fixing kit - RFP1,20/05/2022,0000478442,384.00,Revenue,ENGLISH WOODLANDS (BURROW NURSERY),
South Ribble Borough Council,http://statistics.data.gov.uk/id/local-authority/30UE,Capital,Cap Contract Payment,C230,Delivery,20/05/2022,0000478442,28.00,Revenue,ENGLISH WOODLANDS (BURROW NURSERY),
South Ribble Borough Council,http://statistics.data.gov.uk/id/local-authority/30UE,Capital,Cap Contract Payment,C230,"Land at West Paddock, Leyland PR25 1DH - Ecological Survey and Assessment and Completion of the LE Part of the 2018 BREEAM",13/05/2022,0000476577,"1,073.00",Revenue,ERAP (Consultant Ecologists) Ltd,
South Ribble Borough Council,http://statistics.data.gov.uk/id/local-authority/30UE,Capital,Cap Contract Payment,C230,Coach House at Hurst Grange Park Application to register site under BMCL/European Protected Species Mitigation Licence Application,27/05/2022,0000478721,350.00,Revenue,ERAP (Consultant Ecologists) Ltd,
South Ribble Borough Council,http://statistics.data.gov.uk/id/local-authority/30UE,Capital,Cap Contract Payment,C230,Coach House at Hurst Grange Park Preparation and Delivery of Toolbox Talk to Contractors. Pre-works Inspections of roots and softs strip works,27/05/2022,0000478745,630.00,Revenue,ERAP (Consultant Ecologists) Ltd,
South Ribble Borough Council,http://statistics.data.gov.uk/id/local-authority/30UE,Waste Collection,External Contractors Charges,4570,Additional Clinical Waste Collections April 2022,13/05/2022,0000478383,482.79,Revenue,FCC Environment Services (UK) Ltd,
South Ribble Borough Council,http://statistics.data.gov.uk/id/local-authority/30UE,Waste Collection,External Contractors Charges,4570,Residual Waste - April 22,27/05/2022,0000478492,"45,839.72",Revenue,FCC Environment Services (UK) Ltd,
South Ribble Borough Council,http://statistics.data.gov.uk/id/local-authority/30UE,Recycling,External Contractors Charges,4570,Dry Recyclable (non terraced),27/05/2022,0000478492,"46,926.36",Revenue,FCC Environment Services (UK) Ltd,
South Ribble Borough Council,http://statistics.data.gov.uk/id/local-authority/30UE,Recycling,External Contractors Charges,4570,Dry Recyclable (Terraced),27/05/2022,0000478492,"2,233.78",Revenue,FCC Environment Services (UK) Ltd,
South Ribble Borough Council,http://statistics.data.gov.uk/id/local-authority/30UE,Recycling,External Contractors Charges,4570,Organic Waste (non terraced),27/05/2022,0000478492,"32,490.07",Revenue,FCC Environment Services (UK) Ltd,
South Ribble Borough Council,http://statistics.data.gov.uk/id/local-authority/30UE,Trade Waste,External Contractors Charges,4570,Schedule 2 Properties,27/05/2022,0000478492,"1,868.87",Revenue,FCC Environment Services (UK) Ltd,
South Ribble Borough Council,http://statistics.data.gov.uk/id/local-authority/30UE,Trade Waste,External Contractors Charges,4570,Commercial Waste,27/05/2022,0000478492,"7,274.67",Revenue,FCC Environment Services (UK) Ltd,
South Ribble Borough Council,http://statistics.data.gov.uk/id/local-authority/30UE,Waste Collection,External Contractors Charges,4570,Bulky Waste,27/05/2022,0000478492,"1,009.74",Revenue,FCC Environment Services (UK) Ltd,
South Ribble Borough Council,http://statistics.data.gov.uk/id/local-authority/30UE,Waste Collection,External Contractors Charges,4570,WEEE Collections,27/05/2022,0000478492,379.38,Revenue,FCC Environment Services (UK) Ltd,
South Ribble Borough Council,http://statistics.data.gov.uk/id/local-authority/30UE,Waste Collection,External Contractors Charges,4570,Clinical Waste Collections,27/05/2022,0000478492,646.32,Revenue,FCC Environment Services (UK) Ltd,
South Ribble Borough Council,http://statistics.data.gov.uk/id/local-authority/30UE,Waste Collection,External Contractors Charges,4570,Replacement Bins,27/05/2022,0000478492,"5,000.00",Revenue,FCC Environment Services (UK) Ltd,
South Ribble Borough Council,http://statistics.data.gov.uk/id/local-authority/30UE,Waste Collection,External Contractors Charges,4570,Additional Properties,27/05/2022,0000478492,"5,233.70",Revenue,FCC Environment Services (UK) Ltd,
South Ribble Borough Council,http://statistics.data.gov.uk/id/local-authority/30UE,Short Term Creditors,Amount Paid,0030,retention ref,27/05/2022,0000478492,"-3,112.62",Revenue,FCC Environment Services (UK) Ltd,
South Ribble Borough Council,http://statistics.data.gov.uk/id/local-authority/30UE,Short Term Creditors,Amount Paid,0030,retention rec,27/05/2022,0000478492,"-4,082.51",Revenue,FCC Environment Services (UK) Ltd,
South Ribble Borough Council,http://statistics.data.gov.uk/id/local-authority/30UE,Waste Collection,External Contractors Charges,4570,Additional Bulky Collections - April 2022,27/05/2022,0000478752,"1,143.45",Revenue,FCC Environment Services (UK) Ltd,
South Ribble Borough Council,http://statistics.data.gov.uk/id/local-authority/30UE,Waste Collection,External Contractors Charges,4570,Additional WEEE colletions - April 2022,27/05/2022,0000478752,515.04,Revenue,FCC Environment Services (UK) Ltd,
South Ribble Borough Council,http://statistics.data.gov.uk/id/local-authority/30UE,Short Term Creditors,Amount Paid,0030,retention,27/05/2022,0000478752,-82.92,Revenue,FCC Environment Services (UK) Ltd,
South Ribble Borough Council,http://statistics.data.gov.uk/id/local-authority/30UE,Central Support Services,Applications Systems,4248,Premium Service: U.K. Customer Service Hub (Up to 15 users) Service Designer/Customer Portal/Staff,27/05/2022,0000478320,"38,310.00",Revenue,FIRMSTEP,
South Ribble Borough Council,http://statistics.data.gov.uk/id/local-authority/30UE,Central Support Services,Materials General,4040,FOOTBALL PITCH LINE MARKER PAINT 10LTRS,27/05/2022,0000478717,498.24,Revenue,Fleet Line Markers Limited,
South Ribble Borough Council,http://statistics.data.gov.uk/id/local-authority/30UE,Central Support Services,Materials General,4040,FOOTBALL PITCH LINE MARKER PAINT 10LTRS,27/05/2022,0000478744,498.24,Revenue,Fleet Line Markers Limited,
South Ribble Borough Council,http://statistics.data.gov.uk/id/local-authority/30UE,Central Support Services,Materials General,4040,FOOTBALL PITCH LINE MARKER PAINT 10LTRS  PITCHMARKER Q2,27/05/2022,0000478848,511.68,Revenue,Fleet Line Markers Limited,
South Ribble Borough Council,http://statistics.data.gov.uk/id/local-authority/30UE,Service Management & Support,Petrol,3131,Fuel W/C 02.05.2022,13/05/2022,0000478483,135.97,Revenue,Fuel Card Services,
South Ribble Borough Council,http://statistics.data.gov.uk/id/local-authority/30UE,Service Management & Support,Diesel Fuel,3132,Diesel supplied 3rd May 2022- 7th May 2022,13/05/2022,0000478483,"2,809.73",Revenue,Fuel Card Services,
South Ribble Borough Council,http://statistics.data.gov.uk/id/local-authority/30UE,Service Management & Support,Diesel Fuel,3132,Diesel supply 1st May 2022- 6th May 2022,13/05/2022,0000478484,"11,833.71",Revenue,Fuel Card Services,
South Ribble Borough Council,http://statistics.data.gov.uk/id/local-authority/30UE,Service Management & Support,Diesel Fuel,3132,Diesel supplied 27th April -29th April,13/05/2022,0000478485,"3,425.75",Revenue,Fuel Card Services,
South Ribble Borough Council,http://statistics.data.gov.uk/id/local-authority/30UE,Service Management & Support,Petrol,3131,Fuel W/C 25.04.2022,13/05/2022,0000478489,261.74,Revenue,Fuel Card Services,
South Ribble Borough Council,http://statistics.data.gov.uk/id/local-authority/30UE,Service Management & Support,Petrol,3131,Fuel W/C 09.05.2022,20/05/2022,0000478711,277.29,Revenue,Fuel Card Services,
South Ribble Borough Council,http://statistics.data.gov.uk/id/local-authority/30UE,Service Management & Support,Diesel Fuel,3132,Diesel supplied 9th May 2022- 14th May 2022,20/05/2022,0000478711,"3,261.83",Revenue,Fuel Card Services,
South Ribble Borough Council,http://statistics.data.gov.uk/id/local-authority/30UE,Service Management & Support,Diesel Fuel,3132,Diesel supplied 9th May 2022- 13th May 2022,20/05/2022,0000478712,"13,388.58",Revenue,Fuel Card Services,
South Ribble Borough Council,http://statistics.data.gov.uk/id/local-authority/30UE,Service Management & Support,Diesel Fuel,3132,Diesel supplied 16/05/2022 - 20/05/2022,27/05/2022,0000478879,"11,775.05",Revenue,Fuel Card Services,
South Ribble Borough Council,http://statistics.data.gov.uk/id/local-authority/30UE,Service Management & Support,Petrol,3131,Fuel W/C 16.05.2022,27/05/2022,0000478880,238.91,Revenue,Fuel Card Services,
South Ribble Borough Council,http://statistics.data.gov.uk/id/local-authority/30UE,Service Management & Support,Diesel Fuel,3132,Diesel supplied 16/05/2022 - 20/05/2022,27/05/2022,0000478880,"3,997.35",Revenue,Fuel Card Services,
South Ribble Borough Council,http://statistics.data.gov.uk/id/local-authority/30UE,Central Support Services,Reactive Repair & Maintenance,2020,Re: Civic Centre Leyland Liber1-Re-cover roofing 55m2 above and a round the main entrance/lib dem room/mayors rooms. As per quotation,13/05/2022,0000478359,"6,850.00",Revenue,Gables Uk Ltd,
South Ribble Borough Council,http://statistics.data.gov.uk/id/local-authority/30UE,Community Development,Miscellaneous Expenses,4851,To supply clothing goods as part of the asylum seekers programme,27/05/2022,0000478707,514.00,Revenue,Ghulam Sabir T/A The Sox Co.,
South Ribble Borough Council,http://statistics.data.gov.uk/id/local-authority/30UE,Economic Development,Planned Annual Repair & Maintenance,2021,"Vitabri 2.50m x 3.70m canopies blue / white pvc roofcover 1 Anchoring Key, Carriage from France to Lancashire as per NAME REDACTED",27/05/2022,0000478693,"5,300.00",Revenue,GM Canopies,
South Ribble Borough Council,http://statistics.data.gov.uk/id/local-authority/30UE,Capital,Cap Contract Payment,C230,Leyland Town Deal - Document Management Services,13/05/2022,0000478387,525.00,Revenue,Gosling Consulting Limited,
South Ribble Borough Council,http://statistics.data.gov.uk/id/local-authority/30UE,Capital,Cap Contract Payment,C230,Works - Provision of Quantity Surveyor Services and Procurement Support Services to Leyland Town Deal Project as per NAME REDACTED ,13/05/2022,0000478388,"1,476.55",Revenue,Gosling Consulting Limited,
South Ribble Borough Council,http://statistics.data.gov.uk/id/local-authority/30UE,Capital,Cap Contract Payment,C230,Works - Provision of Quantity Surveyor Services and Procurement Support Services to Leyland Town Deal Project as per NAME REDACTED ,13/05/2022,0000478404,"1,476.55",Revenue,Gosling Consulting Limited,
South Ribble Borough Council,http://statistics.data.gov.uk/id/local-authority/30UE,Capital,Cap Contract Payment,C230,Leyland Town Deal - Document Management Services,13/05/2022,0000478405,525.00,Revenue,Gosling Consulting Limited,
South Ribble Borough Council,http://statistics.data.gov.uk/id/local-authority/30UE,Capital,Cap Contract Payment,C230,Consultancy Services - McKenzie Arms,27/05/2022,0000478727,"2,887.50",Revenue,Gosling Consulting Limited,
South Ribble Borough Council,http://statistics.data.gov.uk/id/local-authority/30UE,Capital,Cap Contract Payment,C230,Consultancy Services - Worden Hall,27/05/2022,0000478728,"3,850.00",Revenue,Gosling Consulting Limited,
South Ribble Borough Council,http://statistics.data.gov.uk/id/local-authority/30UE,Capital,Cap Contract Payment,C230,Consultancy Services - Worden Hall,27/05/2022,0000478742,"3,850.00",Revenue,Gosling Consulting Limited,
South Ribble Borough Council,http://statistics.data.gov.uk/id/local-authority/30UE,Capital,Cap Contract Payment,C230,Consultancy Services - McKenzie Arms,27/05/2022,0000478743,"2,887.50",Revenue,Gosling Consulting Limited,
South Ribble Borough Council,http://statistics.data.gov.uk/id/local-authority/30UE,Corporate Management,External Audit Fees,4512,Housing Benefit Audit 2020/21,20/05/2022,0000478382,"15,900.00",Revenue,Grant Thornton UK LLP,
South Ribble Borough Council,http://statistics.data.gov.uk/id/local-authority/30UE,Community Development,External Catering Charges,4575,1152 meals @ 4 per head provided for Easter HAF.,06/05/2022,0000478234,"4,608.00",Revenue,Halls Bakery Limited,
South Ribble Borough Council,http://statistics.data.gov.uk/id/local-authority/30UE,Surplus or Deficit on Trading,Planned Annual Repair & Maintenance,2021,"To provide 4 x Preventative Maintenance Visits, 6 X Reactive Maintenance Visits per annum Commencing May 2022",13/05/2022,0000478358,"3,200.00",Revenue,Healthmatic Limited,
South Ribble Borough Council,http://statistics.data.gov.uk/id/local-authority/30UE,Capital,Cap Contract Payment,C230,,30/05/2022,0000477598,"262,350.00",Revenue,Heatons Engineering Ltd C/O Napthens Solicitors,
South Ribble Borough Council,http://statistics.data.gov.uk/id/local-authority/30UE,Capital,Cap Contract Payment,C230,,30/05/2022,0000477598,"4,000.00",Revenue,Heatons Engineering Ltd C/O Napthens Solicitors,
South Ribble Borough Council,http://statistics.data.gov.uk/id/local-authority/30UE,Corporate Management,Grants Voluntary Organisation,4711,Design of social isolation booklet,06/05/2022,0000478195,"1,500.00",Revenue,HECKFORD PRINTING LTD T/A HECKFORD ADVER,
South Ribble Borough Council,http://statistics.data.gov.uk/id/local-authority/30UE,Central Support Services,Applications Systems,4248,Imperago Flexitime Management + Door Access Control(up to 1000 emps),20/05/2022,0000478643,880.01,Revenue,HFX LTD,
South Ribble Borough Council,http://statistics.data.gov.uk/id/local-authority/30UE,Central Support Services,Reactive Repair & Maintenance,2020,"Please undertake works at Moss Side depot as per your quotation ref 602, for the replacement of 6 x doors including painting once fitted.",13/05/2022,0000478391,"1,867.20",Revenue,Holden Building Solutions Limited,
South Ribble Borough Council,http://statistics.data.gov.uk/id/local-authority/30UE,Central Support Services,Reactive Repair & Maintenance,2020,LABOUR,13/05/2022,0000478391,520.80,Revenue,Holden Building Solutions Limited,
South Ribble Borough Council,http://statistics.data.gov.uk/id/local-authority/30UE,Central Support Services,Reactive Repair & Maintenance,2020,"Please undertake works at Moss Side depot as per your quotation ref 602, for the replacement of 6 x doors including painting once fitted.",13/05/2022,0000478444,"3,885.00",Revenue,Holden Building Solutions Limited,
South Ribble Borough Council,http://statistics.data.gov.uk/id/local-authority/30UE,Central Support Services,Reactive Repair & Maintenance,2020,LABOUR,13/05/2022,0000478444,"1,665.00",Revenue,Holden Building Solutions Limited,
South Ribble Borough Council,http://statistics.data.gov.uk/id/local-authority/30UE,Capital,Capital Grant,C570,DFG WORK TO SUPPLY AND INSTALL ALONG WITH ASSOCIATED WORKS  AT ADDRESS REDACTED AS PER QUOTE SUPPLIED,06/05/2022,0000478233,"4,282.00",Revenue,Independent Adaptations Ltd,
South Ribble Borough Council,http://statistics.data.gov.uk/id/local-authority/30UE,Capital,Capital Grant,C570,SUPPLY AND INSTALL GEBERIT TOILET AS PER QUOTE SUPPLIED AT ADDRESS REDACTED ,27/05/2022,0000478739,"3,625.00",Revenue,Independent Adaptations Ltd,
South Ribble Borough Council,http://statistics.data.gov.uk/id/local-authority/30UE,Capital,Cap Contract Payment,C230,1800x Hawthorn 60 - 90 at 0.68,27/05/2022,0000478811,"1,224.00",Revenue,J A JONES & SONS,
South Ribble Borough Council,http://statistics.data.gov.uk/id/local-authority/30UE,Capital,Cap Contract Payment,C230,"800x Blackthorn  60 - 90	at 0.78",27/05/2022,0000478811,624.00,Revenue,J A JONES & SONS,
South Ribble Borough Council,http://statistics.data.gov.uk/id/local-authority/30UE,Capital,Cap Contract Payment,C230,60x Hazel 60 - 90 at 0.85,27/05/2022,0000478811,51.00,Revenue,J A JONES & SONS,
South Ribble Borough Council,http://statistics.data.gov.uk/id/local-authority/30UE,Capital,Cap Contract Payment,C230,"60x Rowan 60 - 90	60 at 0.98",27/05/2022,0000478811,58.80,Revenue,J A JONES & SONS,
South Ribble Borough Council,http://statistics.data.gov.uk/id/local-authority/30UE,Capital,Cap Contract Payment,C230,60x Bird Cherry 60 - 90 at 0.98,27/05/2022,0000478811,58.80,Revenue,J A JONES & SONS,
South Ribble Borough Council,http://statistics.data.gov.uk/id/local-authority/30UE,Capital,Cap Contract Payment,C230,50x Birch 60 - 90 at 0.85,27/05/2022,0000478811,42.50,Revenue,J A JONES & SONS,
South Ribble Borough Council,http://statistics.data.gov.uk/id/local-authority/30UE,Capital,Cap Contract Payment,C230,"25x Alder 60 - 90 0.85 	 �      21.25",27/05/2022,0000478811,21.25,Revenue,J A JONES & SONS,
South Ribble Borough Council,http://statistics.data.gov.uk/id/local-authority/30UE,Capital,Cap Contract Payment,C230,"10x Guelder Rose  	60 - 90 0.98",27/05/2022,0000478811,9.80,Revenue,J A JONES & SONS,
South Ribble Borough Council,http://statistics.data.gov.uk/id/local-authority/30UE,Capital,Cap Contract Payment,C230,20x Wild Cherry 100 - 150 2.75,27/05/2022,0000478811,55.00,Revenue,J A JONES & SONS,
South Ribble Borough Council,http://statistics.data.gov.uk/id/local-authority/30UE,Capital,Cap Contract Payment,C230,20x Bird Cherry 101 - 150 2.75,27/05/2022,0000478811,55.00,Revenue,J A JONES & SONS,
South Ribble Borough Council,http://statistics.data.gov.uk/id/local-authority/30UE,Capital,Cap Contract Payment,C230,"6x Hazel 102 - 150	at 2.50",27/05/2022,0000478811,15.00,Revenue,J A JONES & SONS,
South Ribble Borough Council,http://statistics.data.gov.uk/id/local-authority/30UE,Capital,Cap Contract Payment,C230,3x Rowan 103 - 150 2.75,27/05/2022,0000478811,8.25,Revenue,J A JONES & SONS,
South Ribble Borough Council,http://statistics.data.gov.uk/id/local-authority/30UE,Capital,Cap Contract Payment,C230,3x Wild Cherry 104 - 150 at 2.75,27/05/2022,0000478811,8.25,Revenue,J A JONES & SONS,
South Ribble Borough Council,http://statistics.data.gov.uk/id/local-authority/30UE,Capital,Cap Contract Payment,C230,"3x Guelder Rose 105 - 150 at 3.50

Plus 60 Delivery",27/05/2022,0000478811,70.50,Revenue,J A JONES & SONS,
South Ribble Borough Council,http://statistics.data.gov.uk/id/local-authority/30UE,Capital,Cap Contract Payment,C230,450 Beech Trees @ 95p each,27/05/2022,0000478813,427.50,Revenue,J A JONES & SONS,
South Ribble Borough Council,http://statistics.data.gov.uk/id/local-authority/30UE,Central Support Services,Materials General,4040,"Replacement Pump on the AdBlue Tank, Replaced 27.4.22",20/05/2022,0000478356,474.88,Revenue,J SEED & CO LTD,
South Ribble Borough Council,http://statistics.data.gov.uk/id/local-authority/30UE,Capital,Cap Contract Payment,C230,Description: commissioning of Gregson lane changing container as per ADDRESS REDACTED request,06/05/2022,0000478355,320.00,Revenue,J Whittle plumbing & heating,
South Ribble Borough Council,http://statistics.data.gov.uk/id/local-authority/30UE,Open Spaces,Materials General,4040,40T of Soil Improver (20mm max). Collection will be made by Alty Grab Hire.,20/05/2022,0000477771,443.28,Revenue,JOHN COOPER RECYCLING LTD,
South Ribble Borough Council,http://statistics.data.gov.uk/id/local-authority/30UE,Capital,Cap Contract Payment,C230,Costs for work on the refurbishment of Worden Hall Central Buildings,13/05/2022,0000477846,"171,118.88",Revenue,John Turner Construction Group Ltd,
South Ribble Borough Council,http://statistics.data.gov.uk/id/local-authority/30UE,Central Support Services,Miscellaneous Expenses,4851,Collection and removal of 1.8m dia 1.2 tall planters from Walton Summit and Worden Park. As per NAME REDACTED request ,27/05/2022,0000478808,400.00,Revenue,John Wade Groundworks Ltd t/a Wade Group,
South Ribble Borough Council,http://statistics.data.gov.uk/id/local-authority/30UE,Capital,Cap Contract Payment,C230,1.5T excavator with trailer 4 days hire 05/04/2022-08/04/2022 Post knocker 2 days hire 05/04/2022-06/04/2022,20/05/2022,0000477877,354.80,Revenue,K H HIRE SERVICES,
South Ribble Borough Council,http://statistics.data.gov.uk/id/local-authority/30UE,Street Cleansing,External Contractors Charges,4570,Spring By-pass Cleaning (5 nights and 3 day operation),20/05/2022,0000478706,"5,850.00",Revenue,KAYS TRAFFIC MANAGEMENT LTD,
South Ribble Borough Council,http://statistics.data.gov.uk/id/local-authority/30UE,Community Development,Professional Fees,4510,Easter camps for HAF,06/05/2022,0000478352,"1,120.00",Revenue,KEY UNLOCKING FUTURES LTD,
South Ribble Borough Council,http://statistics.data.gov.uk/id/local-authority/30UE,Central Support Services,Planned Annual Repair & Maintenance,2021,"Annual Contract for 2022/2023 for the Service of Evacuation Chairs at Civic Centre, service of PUWER Annual Evacuation Chair",13/05/2022,0000478574,475.00,Revenue,K-FIVE SALES LIMITED,
South Ribble Borough Council,http://statistics.data.gov.uk/id/local-authority/30UE,Community Development,Professional Fees,4510,Football camps for Easter for HAF,27/05/2022,0000478063,"1,728.00",Revenue,Kick On Football Coaching,
South Ribble Borough Council,http://statistics.data.gov.uk/id/local-authority/30UE,Surplus or Deficit on Trading,Rents,2401,"Payment of annual rental charge at Forward Industrial Estate, L2 Property Limited for 2022/2023",27/05/2022,0000478730,"16,147.50",Revenue,L2 Property Limited,
South Ribble Borough Council,http://statistics.data.gov.uk/id/local-authority/30UE,Surplus or Deficit on Trading,Rents,2401,less ground rent,27/05/2022,0000478730,"-2,850.00",Revenue,L2 Property Limited,
South Ribble Borough Council,http://statistics.data.gov.uk/id/local-authority/30UE,Central Support Services,Materials General,4040,Adblue IBC - 1000 litres at 0.99 ppl,20/05/2022,0000478446,990.00,Revenue,LANCASHIRE OILS LTD,
South Ribble Borough Council,http://statistics.data.gov.uk/id/local-authority/30UE,Central Support Services,Materials General,4040,1 x 205 litres Red LL Anti-freeze Oat Concentrate @ 1.49ppl,27/05/2022,0000478800,305.45,Revenue,LANCASHIRE OILS LTD,
South Ribble Borough Council,http://statistics.data.gov.uk/id/local-authority/30UE,Central Support Services,Materials General,4040,1 x 36 EP2 Grease Cartridge ,27/05/2022,0000478800,60.84,Revenue,LANCASHIRE OILS LTD,
South Ribble Borough Council,http://statistics.data.gov.uk/id/local-authority/30UE,Community Development,Professional Fees,4510,"Easter HAF Workshop Delivery, Monday 11th April 40 spaces, Tuesday 12th April 40 spaces",06/05/2022,0000478232,720.00,Revenue,Lancashire Youth Challenge,
South Ribble Borough Council,http://statistics.data.gov.uk/id/local-authority/30UE,Capital,Cap Contract Payment,C230,LCC street lighting as per NAME REDACTED request Description: relocation and trenching work to cctv column at Bamber bridge leisure centre,06/05/2022,0000478170,"5,000.00",Revenue,LANCS COUNTY COUNCIL,
South Ribble Borough Council,http://statistics.data.gov.uk/id/local-authority/30UE,Capital,Capital Grant,C570,DFG WORK TO SUPPLY AND INSTALL HOISTING EQUIPMENT AT ADDRESS REDACTED AS PER QUOTE SUPPLIED,06/05/2022,0000478231,"1,654.71",Revenue,LANCS COUNTY COUNCIL,
South Ribble Borough Council,http://statistics.data.gov.uk/id/local-authority/30UE,Central Support Services,Materials General,4040,"1x nos sensor & 1x dif inspection plug , YA19 NJZ, JFC18214 ",20/05/2022,0000477768,559.03,Revenue,LANCS DAF,
South Ribble Borough Council,http://statistics.data.gov.uk/id/local-authority/30UE,Central Support Services,Materials General,4040,"1x door switch, YA19 NGN, JFC18223",20/05/2022,0000477768,15.20,Revenue,LANCS DAF,
South Ribble Borough Council,http://statistics.data.gov.uk/id/local-authority/30UE,Central Support Services,Materials General,4040,Passenger outer seatbelt Indicator extension Full filter kit Oil DX19 XBJ JFC 18267,06/05/2022,0000478187,465.17,Revenue,LANCS DAF,
South Ribble Borough Council,http://statistics.data.gov.uk/id/local-authority/30UE,Central Support Services,Materials General,4040,Seat base YA19 NGN JFC 18347,27/05/2022,0000478716,402.21,Revenue,LANCS DAF,
South Ribble Borough Council,http://statistics.data.gov.uk/id/local-authority/30UE,Capital,Cap Contract Payment,C230,Design and Construction arising from the Proposed new 2nr x 106.00m x 70m Football 3G Artificial Grass Pitch at Bamber Bridge Leisure Centre ,30/05/2022,0000478064,"73,290.94",Revenue,LANO SPORTS NV,
South Ribble Borough Council,http://statistics.data.gov.uk/id/local-authority/30UE,Capital,Cap Contract Payment,C230,Leyland Town Deal - Archaeological Survey,20/05/2022,0000478658,"3,226.00",Revenue,Lanpro Services Ltd,
South Ribble Borough Council,http://statistics.data.gov.uk/id/local-authority/30UE,Elections,Polling Centre Costs,4421,Use of the venue for the Earnshaw Bridge By-Election on 5 May 2022. Delivery of the polling station equipment will be undertaken on 4 May. ,13/05/2022,0000478576,250.00,Revenue,LEYLAND BAPTIST CHURCH,
South Ribble Borough Council,http://statistics.data.gov.uk/id/local-authority/30UE,Recreation & Sport,Reactive Repair & Maintenance,2020,To fit bespoke security cages over the Defibrillators.As per NAME REDACTED request Kingsfold community centre & Holme Road pavilion,06/05/2022,0000478275,810.00,Revenue,Leyland Lane Wrought Iron Gates & Railings,
South Ribble Borough Council,http://statistics.data.gov.uk/id/local-authority/30UE,Surplus or Deficit on Trading,Reactive Repair & Maintenance,2020,This is to fit bespoke security cages over the Defibrillators following vandalism. Holme Road pavilion,06/05/2022,0000478275,810.00,Revenue,Leyland Lane Wrought Iron Gates & Railings,
South Ribble Borough Council,http://statistics.data.gov.uk/id/local-authority/30UE,Central Support Services,Operational Equip & Tools,4010,PADLOCKS  - SQUIRE 660 TO PASS KEY 10,20/05/2022,0000478577,273.17,Revenue,M A C BUILDING PRODUCTS LTD,
South Ribble Borough Council,http://statistics.data.gov.uk/id/local-authority/30UE,Open Spaces,Materials General,4040,40T grade 1 top soil to be delivered to Worden Park football pitches.,20/05/2022,0000478586,"1,040.00",Revenue,M C & M A STEWART HAULAGE LTD,
South Ribble Borough Council,http://statistics.data.gov.uk/id/local-authority/30UE,Street Cleansing,Materials General,4040,"20tonne of white limestone, 20mm to dust For delivery on the 24/03/2022 to Penwortham Community Centre",20/05/2022,0000478587,439.58,Revenue,M C & M A STEWART HAULAGE LTD,
South Ribble Borough Council,http://statistics.data.gov.uk/id/local-authority/30UE,Capital,Capital Grant,C570,DFG WORKS TO COMPLETE RAMP AND ASSOCIATED WORK AT NAME REDACTED AS PER SRBC PLAN AND SPEC AND QUOTE ,27/05/2022,0000478737,"2,328.34",Revenue,MAHONEY CONTRACTORS LTD,
South Ribble Borough Council,http://statistics.data.gov.uk/id/local-authority/30UE,Capital,Capital Grant,C570,DFG WORKS FOR LEVEL ACCESS BATHROOM AT ADDRESS REDACTED.,27/05/2022,0000478801,"3,376.50",Revenue,MAHONEY CONTRACTORS LTD,
South Ribble Borough Council,http://statistics.data.gov.uk/id/local-authority/30UE,Open Spaces,GM Refurbishment,4657,Removal of 2 loads of waste from Worden Depot,20/05/2022,0000478449,500.00,Revenue,Michael Alty,
South Ribble Borough Council,http://statistics.data.gov.uk/id/local-authority/30UE,Surplus or Deficit on Trading,Reactive Repair & Maintenance,2020,To undertake roofing works to ADDRESS REDACTED as per your estimate ref  1195,06/05/2022,0000478147,"17,500.00",Revenue,Mick Bamber,
South Ribble Borough Council,http://statistics.data.gov.uk/id/local-authority/30UE,Regulatory Services,Legal,4821,Barrister fee legal advice in respect of Penwortham Residential Park,27/05/2022,0000478487,"1,125.00",Revenue,Mr Leo Charalambides,
South Ribble Borough Council,http://statistics.data.gov.uk/id/local-authority/30UE,Central Support Services,External Contractors Charges,4570,Overhaul back end YD19 ATZ JFC18246,06/05/2022,0000478171,"3,235.78",Revenue,Municipal Vehicle Services,
South Ribble Borough Council,http://statistics.data.gov.uk/id/local-authority/30UE,Central Support Services,External Contractors Charges,4570,Overhaul Back End - Labour Only YE19JPW JFC18306,20/05/2022,0000478401,"2,740.00",Revenue,Municipal Vehicle Services,
South Ribble Borough Council,http://statistics.data.gov.uk/id/local-authority/30UE,Development Control,Advertising,4841,Publication of planning publicity press notices in the LEP - April 2022 to March 2023,20/05/2022,0000478594,648.00,Revenue,National World Publishing Limited,
South Ribble Borough Council,http://statistics.data.gov.uk/id/local-authority/30UE,Regulatory Services,Other Fees,4520,"500 X CP-TX CLEAR PLATE, 250 X IP-3-C MOGO INTERNAL PLATE -A4 TEAR OUT PLATE - HACKNEY CARRIAGE - WITH HOLOGRAM ",13/05/2022,0000477844,"6,589.00",Revenue,NEWAUTO LTD T/A MOGO (UK),
South Ribble Borough Council,http://statistics.data.gov.uk/id/local-authority/30UE,Service Management & Support,External Contractors Charges,4570,Fuel pumps and OCIO gauges service maintenance and calibration contract to include 2 site visits for service and calibration works. ,20/05/2022,0000478654,825.00,Revenue,NIXON PUMPS,
South Ribble Borough Council,http://statistics.data.gov.uk/id/local-authority/30UE,Street Cleansing,Materials General,4040,Nomix Duplex 5 Litres,13/05/2022,0000478333,"18,470.00",Revenue,NOMIX ENVIRO LTD,
South Ribble Borough Council,http://statistics.data.gov.uk/id/local-authority/30UE,Street Cleansing,Materials General,4040,Compact Applicator,13/05/2022,0000478333,230.00,Revenue,NOMIX ENVIRO LTD,
South Ribble Borough Council,http://statistics.data.gov.uk/id/local-authority/30UE,Street Cleansing,Materials General,4040,Nomix Dual 4x750ml,13/05/2022,0000478333,768.00,Revenue,NOMIX ENVIRO LTD,
South Ribble Borough Council,http://statistics.data.gov.uk/id/local-authority/30UE,Street Cleansing,Materials General,4040,Universal Cleaner 5 Litres,13/05/2022,0000478333,289.20,Revenue,NOMIX ENVIRO LTD,
South Ribble Borough Council,http://statistics.data.gov.uk/id/local-authority/30UE,Street Cleansing,Materials General,4040,Universal Cleaner 4X 750ml,13/05/2022,0000478333,52.00,Revenue,NOMIX ENVIRO LTD,
South Ribble Borough Council,http://statistics.data.gov.uk/id/local-authority/30UE,Street Cleansing,Materials General,4040,Classic Apllicator (3 Year lease),13/05/2022,0000478333,480.00,Revenue,NOMIX ENVIRO LTD,
South Ribble Borough Council,http://statistics.data.gov.uk/id/local-authority/30UE,Street Cleansing,Materials General,4040,Carriage Charge,13/05/2022,0000478333,51.00,Revenue,NOMIX ENVIRO LTD,
South Ribble Borough Council,http://statistics.data.gov.uk/id/local-authority/30UE,Capital,Cap Contract Payment,C230,RIBA Stage 3 - Extra Care Development - West Paddock (includes Principle Designer Fees),27/05/2022,0000478722,"28,536.00",Revenue,NORR Consultants Limited,
South Ribble Borough Council,http://statistics.data.gov.uk/id/local-authority/30UE,Surplus or Deficit on Trading,Reactive Repair & Maintenance,2020,carry out works to service the pump at Worden Park as request by NAME REDACTED. team of 2 x fully trained engineers. ,20/05/2022,0000478595,800.00,Revenue,NORTH WEST MAINTENANCE SERVICES LTD,
South Ribble Borough Council,http://statistics.data.gov.uk/id/local-authority/30UE,Central Support Services,Materials General,4040,SCARAB MINI SWEEPER BRUSHES - POLY/WIRE MIX MATHIEU-0120089,20/05/2022,0000478351,"1,250.87",Revenue,NORTHERN MUNICIPAL SPARES LTD,
South Ribble Borough Council,http://statistics.data.gov.uk/id/local-authority/30UE,Central Support Services,Materials General,4040,CHANNEL BRUSH - 2.8 mm POLY & 3.3mm WIRE 5 row 700/1000mm - MIDI SWEEPER,20/05/2022,0000478451,769.15,Revenue,NORTHERN MUNICIPAL SPARES LTD,
South Ribble Borough Council,http://statistics.data.gov.uk/id/local-authority/30UE,Central Support Services,Materials General,4040,Delivery,20/05/2022,0000478451,56.07,Revenue,NORTHERN MUNICIPAL SPARES LTD,
South Ribble Borough Council,http://statistics.data.gov.uk/id/local-authority/30UE,Central Support Services,Reactive Repair & Maintenance,2020,Please supply and fit a new cage to the grounds workshop at Moss Side Depot as detailed in your quotation ref QU000312,13/05/2022,0000478109,825.00,Revenue,Northern Storage & Interiors Ltd,
South Ribble Borough Council,http://statistics.data.gov.uk/id/local-authority/30UE,Central Support Services,Reactive Repair & Maintenance,2020,Please supply and fit a new cage to the grounds workshop at Moss Side Depot as detailed in your quotation ref QU000312,13/05/2022,0000478110,"1,900.00",Revenue,Northern Storage & Interiors Ltd,
South Ribble Borough Council,http://statistics.data.gov.uk/id/local-authority/30UE,Recreation & Sport,Electricity,2303,1/4 to 30/4/22,27/05/2022,0000478766,"7,523.20",Revenue,NPOWER Business,
South Ribble Borough Council,http://statistics.data.gov.uk/id/local-authority/30UE,Recreation & Sport,Electricity,2303,1/4 to 30/4/22,27/05/2022,0000478767,"8,214.48",Revenue,NPOWER Business,
South Ribble Borough Council,http://statistics.data.gov.uk/id/local-authority/30UE,Democratic Represent and  Mgnt,Consumable Clng Materials,2711,SC990715 - Green mop bucket ,13/05/2022,0000478172,32.91,Revenue,Pattersons (Bristol) Ltd,
South Ribble Borough Council,http://statistics.data.gov.uk/id/local-authority/30UE,Democratic Represent and  Mgnt,Consumable Clng Materials,2711,"SC990714 -  Red mop bucket	",13/05/2022,0000478172,32.91,Revenue,Pattersons (Bristol) Ltd,
South Ribble Borough Council,http://statistics.data.gov.uk/id/local-authority/30UE,Democratic Represent and  Mgnt,Consumable Clng Materials,2711,HN023-12  -  Long Handle Brush   ,13/05/2022,0000478172,10.28,Revenue,Pattersons (Bristol) Ltd,
South Ribble Borough Council,http://statistics.data.gov.uk/id/local-authority/30UE,Democratic Represent and  Mgnt,Consumable Clng Materials,2711," BA050-5	- Cleaner Disinfectant ",13/05/2022,0000478172,50.00,Revenue,Pattersons (Bristol) Ltd,
South Ribble Borough Council,http://statistics.data.gov.uk/id/local-authority/30UE,Democratic Represent and  Mgnt,Consumable Clng Materials,2711, JG412630  - Air Freshener  ,13/05/2022,0000478172,25.92,Revenue,Pattersons (Bristol) Ltd,
South Ribble Borough Council,http://statistics.data.gov.uk/id/local-authority/30UE,Democratic Represent and  Mgnt,Consumable Clng Materials,2711, HA015-G - Mop Heads ,13/05/2022,0000478172,7.40,Revenue,Pattersons (Bristol) Ltd,
South Ribble Borough Council,http://statistics.data.gov.uk/id/local-authority/30UE,Democratic Represent and  Mgnt,Consumable Clng Materials,2711, HA015-R - Mop Heads ,13/05/2022,0000478172,7.40,Revenue,Pattersons (Bristol) Ltd,
South Ribble Borough Council,http://statistics.data.gov.uk/id/local-authority/30UE,Democratic Represent and  Mgnt,Consumable Clng Materials,2711,"HA025-G	- Mop Handle",13/05/2022,0000478172,11.79,Revenue,Pattersons (Bristol) Ltd,
South Ribble Borough Council,http://statistics.data.gov.uk/id/local-authority/30UE,Democratic Represent and  Mgnt,Consumable Clng Materials,2711,"HA025-R	  - Mop Handle  ",13/05/2022,0000478172,11.79,Revenue,Pattersons (Bristol) Ltd,
South Ribble Borough Council,http://statistics.data.gov.uk/id/local-authority/30UE,Democratic Represent and  Mgnt,Consumable Clng Materials,2711,"BA030-75  -	 JANGRO GLASS & MIRROR CLEANER 750ML ",13/05/2022,0000478172,7.86,Revenue,Pattersons (Bristol) Ltd,
South Ribble Borough Council,http://statistics.data.gov.uk/id/local-authority/30UE,Democratic Represent and  Mgnt,Consumable Clng Materials,2711,"AA201 -	JANGRO MICRO MINI TOILET ROLL 100M X 90MM (24)	",13/05/2022,0000478172,116.56,Revenue,Pattersons (Bristol) Ltd,
South Ribble Borough Council,http://statistics.data.gov.uk/id/local-authority/30UE,Democratic Represent and  Mgnt,Consumable Clng Materials,2711,"BK101-50  -   JANGRO PINK PEARLISED HAND SOAP 500ML	",13/05/2022,0000478172,8.82,Revenue,Pattersons (Bristol) Ltd,
South Ribble Borough Council,http://statistics.data.gov.uk/id/local-authority/30UE,Democratic Represent and  Mgnt,Consumable Clng Materials,2711,"CG106-Y1	-  EXEL MICROFIBRE SUPER CLOTH	",13/05/2022,0000478172,7.80,Revenue,Pattersons (Bristol) Ltd,
South Ribble Borough Council,http://statistics.data.gov.uk/id/local-authority/30UE,Democratic Represent and  Mgnt,Consumable Clng Materials,2711,"CG106-G1	-  EXEL MICROFIBRE SUPER CLOTH	",13/05/2022,0000478172,7.80,Revenue,Pattersons (Bristol) Ltd,
South Ribble Borough Council,http://statistics.data.gov.uk/id/local-authority/30UE,Democratic Represent and  Mgnt,Consumable Clng Materials,2711,"CG106-B	-  EXEL MICROFIBRE SUPER CLOTH 40X 40CM BLUE (10) ",13/05/2022,0000478172,7.80,Revenue,Pattersons (Bristol) Ltd,
South Ribble Borough Council,http://statistics.data.gov.uk/id/local-authority/30UE,Democratic Represent and  Mgnt,Consumable Clng Materials,2711,"AE234	-  TORK S-FOLD HAND TOWEL 1PLY BLUE (4000SHT) ",13/05/2022,0000478172,159.04,Revenue,Pattersons (Bristol) Ltd,
South Ribble Borough Council,http://statistics.data.gov.uk/id/local-authority/30UE,Democratic Represent and  Mgnt,Consumable Clng Materials,2711,"BP012	-  JANGRO ENVIRO BIO LAUNDRY POWDER 100 WASH	",13/05/2022,0000478172,11.10,Revenue,Pattersons (Bristol) Ltd,
South Ribble Borough Council,http://statistics.data.gov.uk/id/local-authority/30UE,Democratic Represent and  Mgnt,Consumable Clng Materials,2711,"CM180	 - JANGRO REFUSE SACKS 18X29X39 180G HEAVY DUTY BLACK (200)	",13/05/2022,0000478172,41.49,Revenue,Pattersons (Bristol) Ltd,
South Ribble Borough Council,http://statistics.data.gov.uk/id/local-authority/30UE,Democratic Represent and  Mgnt,Consumable Clng Materials,2711,"BK104-5	-  JANGRO HAND SOAP UNPERFUMED 5LTR	",13/05/2022,0000478172,34.86,Revenue,Pattersons (Bristol) Ltd,
South Ribble Borough Council,http://statistics.data.gov.uk/id/local-authority/30UE,Democratic Represent and  Mgnt,Consumable Clng Materials,2711,"CG121-G	  -  COLOUR CODED DISHCLOTHS 12 X 16 GREEN  (10)	",13/05/2022,0000478172,2.32,Revenue,Pattersons (Bristol) Ltd,
South Ribble Borough Council,http://statistics.data.gov.uk/id/local-authority/30UE,Democratic Represent and  Mgnt,Consumable Clng Materials,2711,"EY-01500	-   DURACELL BATTERIES MN1500c AA (4)	    ",13/05/2022,0000478172,9.28,Revenue,Pattersons (Bristol) Ltd,
South Ribble Borough Council,http://statistics.data.gov.uk/id/local-authority/30UE,Democratic Represent and  Mgnt,Consumable Clng Materials,2711,"CG106-P	-  EXEL MICROFIBRE SUPER CLOTH 40X 40CM PINK (10)",13/05/2022,0000478172,7.80,Revenue,Pattersons (Bristol) Ltd,
South Ribble Borough Council,http://statistics.data.gov.uk/id/local-authority/30UE,Democratic Represent and  Mgnt,Consumable Clng Materials,2711,"BG045-   JANGRO CLEANER POLISH 400ML AEROSOL	",13/05/2022,0000478172,13.56,Revenue,Pattersons (Bristol) Ltd,
South Ribble Borough Council,http://statistics.data.gov.uk/id/local-authority/30UE,Democratic Represent and  Mgnt,Consumable Clng Materials,2711,"BC015-75	-   Thickened Bleach	 ",13/05/2022,0000478172,15.84,Revenue,Pattersons (Bristol) Ltd,
South Ribble Borough Council,http://statistics.data.gov.uk/id/local-authority/30UE,Democratic Represent and  Mgnt,Consumable Clng Materials,2711,"BD041-5	-  Lemon Gel		",13/05/2022,0000478172,8.28,Revenue,Pattersons (Bristol) Ltd,
South Ribble Borough Council,http://statistics.data.gov.uk/id/local-authority/30UE,Democratic Represent and  Mgnt,Consumable Clng Materials,2711,"BD075-5	-  Safety Floor Cleaner		",13/05/2022,0000478172,15.88,Revenue,Pattersons (Bristol) Ltd,
South Ribble Borough Council,http://statistics.data.gov.uk/id/local-authority/30UE,Central Support Services,Clothing and Uniforms,4410,DISPOSABLE GLOVES NITRILE (BOX- 100) X LARGE DG150-XL,27/05/2022,0000478298,139.86,Revenue,Pattersons (Bristol) Ltd,
South Ribble Borough Council,http://statistics.data.gov.uk/id/local-authority/30UE,Central Support Services,Clothing and Uniforms,4410, DISPOSABLE GLOVES NITRILE (BOX- 100) LARGE DG150-L,27/05/2022,0000478298,179.82,Revenue,Pattersons (Bristol) Ltd,
South Ribble Borough Council,http://statistics.data.gov.uk/id/local-authority/30UE,Surplus or Deficit on Trading,Reactive Repair & Maintenance,2020,EPC at ADDRESS REDACTED,20/05/2022,0000478455,250.00,Revenue,Paul Foster and Co Ltd,
South Ribble Borough Council,http://statistics.data.gov.uk/id/local-authority/30UE,Surplus or Deficit on Trading,Reactive Repair & Maintenance,2020,Decoration quote for decoration works to Leyland museum QU0562 as per NAME REDACTED,13/05/2022,0000478579,"1,990.00",Revenue,PDP PROPERTY SERVICES LTD,
South Ribble Borough Council,http://statistics.data.gov.uk/id/local-authority/30UE,Short Term Creditors,Manual Control,0001,,27/05/2022,0000478626,414.00,Revenue,Penwortham Hill Limited,
South Ribble Borough Council,http://statistics.data.gov.uk/id/local-authority/30UE,Central Support Services,Occupational Health,1408,"PROVISION OF WELLBEING, TELEPHONE CONSULTATIONS AND COUNSELLING FROM APRIL 2022",27/05/2022,0000478281,165.38,Revenue,People Asset Management,
South Ribble Borough Council,http://statistics.data.gov.uk/id/local-authority/30UE,Central Support Services,Occupational Health,1408,,27/05/2022,0000478281,151.75,Revenue,People Asset Management,
South Ribble Borough Council,http://statistics.data.gov.uk/id/local-authority/30UE,Central Support Services,Software Licensing,4243,Split costs between Chorley and SRBC: Citrix Virtual Apps and Desktops Service Premium User/Device - Licence 300x & 600X,13/05/2022,0000478421,"56,607.00",Revenue,PHOENIX SOFTWARE LTD,
South Ribble Borough Council,http://statistics.data.gov.uk/id/local-authority/30UE,Central Support Services,Rental,4012,"2021 / 2022 annual contract for the provision of sanitary services to Moss Side Depot, 81 Bison Place, Leyland as per your ref 105797",06/05/2022,0000478335,410.88,Revenue,PHS GROUP PLC,
South Ribble Borough Council,http://statistics.data.gov.uk/id/local-authority/30UE,Central Support Services,Rental,4012,"Invoice 68956170 for the period Jan - end March 2022 for sanitary services to Moss Side Depot, 81 Bison Place, Leyland ",27/05/2022,0000478790,413.76,Revenue,PHS GROUP PLC,
South Ribble Borough Council,http://statistics.data.gov.uk/id/local-authority/30UE,Central Support Services,Agency Staff,1121,Planning Enforcement consultancy services,13/05/2022,0000478239,"1,735.10",Revenue,Planning Control & PACE Solutions,
South Ribble Borough Council,http://statistics.data.gov.uk/id/local-authority/30UE,Central Support Services,Agency Staff,1121,Planning Enforcement consultancy services,13/05/2022,0000478258,"1,539.00",Revenue,Planning Control & PACE Solutions,
South Ribble Borough Council,http://statistics.data.gov.uk/id/local-authority/30UE,Central Support Services,Agency Staff,1121,Planning Enforcement consultancy services,13/05/2022,0000478259,"1,273.00",Revenue,Planning Control & PACE Solutions,
South Ribble Borough Council,http://statistics.data.gov.uk/id/local-authority/30UE,Central Support Services,Agency Staff,1121,Planning Enforcement consultancy services,20/05/2022,0000478524,"1,007.00",Revenue,Planning Control & PACE Solutions,
South Ribble Borough Council,http://statistics.data.gov.uk/id/local-authority/30UE,Central Support Services,Agency Staff,1121,Planning Enforcement consultancy services,27/05/2022,0000478685,988.00,Revenue,Planning Control & PACE Solutions,
South Ribble Borough Council,http://statistics.data.gov.uk/id/local-authority/30UE,Emergency Planning,Subscriptions General,4721,2022 -2023 SRBC Contribution to LRF admin post ,20/05/2022,0000478346,896.06,Revenue,POLICE & CRIME COMMISSIONER LANCS POLICE,
South Ribble Borough Council,http://statistics.data.gov.uk/id/local-authority/30UE,Democratic Represent and  Mgnt,Performing Rights,4883,2022 / 2023 music licence fees for the banqueting suite at the Civic Centre as per NAME REDACTED and quote submitted on 5th May 2022.,20/05/2022,0000478680,312.61,Revenue,PPL PRS,
South Ribble Borough Council,http://statistics.data.gov.uk/id/local-authority/30UE,Economic Development,Performing Rights,4883,"2022 / 2023 music licence fees for Leyland Market, Northcote Street, Leyland as per NAME REDACTED",20/05/2022,0000478680,849.06,Revenue,PPL PRS,
South Ribble Borough Council,http://statistics.data.gov.uk/id/local-authority/30UE,Central Support Services,Paper Bulk,4133,Ongoing  paper supplies,20/05/2022,0000478376,473.00,Revenue,PREMIER PAPER GROUP LTD,
South Ribble Borough Council,http://statistics.data.gov.uk/id/local-authority/30UE,Homelessness,Security Measures,4272,Sanctuary survey & works - OP,27/05/2022,0000478111,437.00,Revenue,PRESTON CARE & REPAIR,
South Ribble Borough Council,http://statistics.data.gov.uk/id/local-authority/30UE,Homelessness,Security Measures,4272,Tailored package. Completed 7th December 2021 ADDRESS REDACTED,27/05/2022,0000478249,645.50,Revenue,PRESTON CARE & REPAIR,
South Ribble Borough Council,http://statistics.data.gov.uk/id/local-authority/30UE,Corporate Management,Grants Voluntary Organisation,4711,Social isolation provision transport - Practical Support payment,06/05/2022,0000478257,"5,000.00",Revenue,Preston Community Transport,
South Ribble Borough Council,http://statistics.data.gov.uk/id/local-authority/30UE,Central Support Services,Materials General,4040,TR240 - Various Tyres,20/05/2022,0000478456,636.05,Revenue,PRESTON TYRE SPECIALISTS,
South Ribble Borough Council,http://statistics.data.gov.uk/id/local-authority/30UE,Elections,Polling Card Costs,4423,Earnshaw Bridge By-Election - poll Card postage (quantity 3538) as per Job ID 9388 - Invoice number C501494,06/05/2022,0000478322,"1,857.10",Revenue,PRINT IMAGE FACILITIES LLP,
South Ribble Borough Council,http://statistics.data.gov.uk/id/local-authority/30UE,Elections,Electoral Administration Act,4970,"10,000 ITR OUTER ENVELOPES (AS PER ACKNOWLEDGEMENT 9407)",06/05/2022,0000478315,495.20,Revenue,PRINT IMAGE NETWORK LTD,
South Ribble Borough Council,http://statistics.data.gov.uk/id/local-authority/30UE,Elections,Polling Centre Costs,4421,Earnshaw Bridge By-Election - CNL`s - quantity 116 - as per Job ID 9385,13/05/2022,0000478493,375.00,Revenue,PRINT IMAGE NETWORK LTD,
South Ribble Borough Council,http://statistics.data.gov.uk/id/local-authority/30UE,Elections,Polling Centre Costs,4421,Earnshaw Bridge By-Election - Ballot Books (29 ordinary/2 tendered) - as per Job ID 9387,13/05/2022,0000478494,829.00,Revenue,PRINT IMAGE NETWORK LTD,
South Ribble Borough Council,http://statistics.data.gov.uk/id/local-authority/30UE,Elections,Postal Voting Costs,4422,Earnshaw Bridge by-election - Postal Voting Ballot Packs - quantity 828 - as per Job ID 9384,13/05/2022,0000478495,"1,494.00",Revenue,PRINT IMAGE NETWORK LTD,
South Ribble Borough Council,http://statistics.data.gov.uk/id/local-authority/30UE,Homelessness,Void Loss,5313,Q4 interim void loss 02/01/2022 - 02/04/2022,27/05/2022,0000478862,"1,633.81",Revenue,PROGRESS HOUSING GRP ref:DNSOU001,
South Ribble Borough Council,http://statistics.data.gov.uk/id/local-authority/30UE,Homelessness,Contributions to Other Bodies,4730,2 x block booked rooms at 50 per night 29/04/2022 -31/05/2022 (32 nights),06/05/2022,0000478344,"3,200.00",Revenue,Purpleroomz,
South Ribble Borough Council,http://statistics.data.gov.uk/id/local-authority/30UE,Homelessness,Temporary Accommodation,5311,NAME REDACTED 32 nights 29/04/2022 - 31/05/2022,06/05/2022,0000478344,"1,536.00",Revenue,Purpleroomz,
South Ribble Borough Council,http://statistics.data.gov.uk/id/local-authority/30UE,Homelessness,Temporary Accommodation,5311,NAME REDACTED 32 nights 29/04/2022 - 31/05/2022,06/05/2022,0000478344,"1,536.00",Revenue,Purpleroomz,
South Ribble Borough Council,http://statistics.data.gov.uk/id/local-authority/30UE,Homelessness,Temporary Accommodation,5311,NAME REDACTED and children,20/05/2022,0000478669,472.35,Revenue,Purpleroomz,
South Ribble Borough Council,http://statistics.data.gov.uk/id/local-authority/30UE,Homelessness,Temporary Accommodation,5311,NAME REDACTED 4 nights 25.04.2022-29.04.2022,20/05/2022,0000478670,200.00,Revenue,Purpleroomz,
South Ribble Borough Council,http://statistics.data.gov.uk/id/local-authority/30UE,Homelessness,Temporary Accommodation,5311,NAME REDACTED 3 nights 26.04.2022-29.04.2022,20/05/2022,0000478670,150.00,Revenue,Purpleroomz,
South Ribble Borough Council,http://statistics.data.gov.uk/id/local-authority/30UE,Surplus or Deficit on Trading,Reactive Repair & Maintenance,2020,To apply anti climb paint to the guttering around the centre . Paint has originally been applied to the guttering and downspouts,13/05/2022,0000478343,150.00,Revenue,RED ROSE BUILDING MAINTENANCE,
South Ribble Borough Council,http://statistics.data.gov.uk/id/local-authority/30UE,Surplus or Deficit on Trading,Reactive Repair & Maintenance,2020,LABOUR,13/05/2022,0000478343,200.00,Revenue,RED ROSE BUILDING MAINTENANCE,
South Ribble Borough Council,http://statistics.data.gov.uk/id/local-authority/30UE,Recreation & Sport,Reactive Repair & Maintenance,2020,Please fit 28m of linear Arco channels with additional channels at the rear of Penwortham Leisure Centre as agreed with facilities management  ,13/05/2022,0000478555,"1,500.00",Revenue,RED ROSE BUILDING MAINTENANCE,
South Ribble Borough Council,http://statistics.data.gov.uk/id/local-authority/30UE,Recreation & Sport,Reactive Repair & Maintenance,2020,LABOUR,13/05/2022,0000478555,"1,000.00",Revenue,RED ROSE BUILDING MAINTENANCE,
South Ribble Borough Council,http://statistics.data.gov.uk/id/local-authority/30UE,Surplus or Deficit on Trading,Reactive Repair & Maintenance,2020,To attend worden park near to football pitches as per NAME REDACTED - unblocking main sewer within worden park.,20/05/2022,0000478650,450.00,Revenue,RED ROSE BUILDING MAINTENANCE,
South Ribble Borough Council,http://statistics.data.gov.uk/id/local-authority/30UE,Central Support Services,Reactive Repair & Maintenance,2020,Quotation to supply Labour and vehicle to take up the temporary walkway at the civic centre to load up and remove to Worden park for storage,20/05/2022,0000478668,240.00,Revenue,RED ROSE BUILDING MAINTENANCE,
South Ribble Borough Council,http://statistics.data.gov.uk/id/local-authority/30UE,Central Support Services,Reactive Repair & Maintenance,2020,MATERIALS,20/05/2022,0000478668,60.00,Revenue,RED ROSE BUILDING MAINTENANCE,
South Ribble Borough Council,http://statistics.data.gov.uk/id/local-authority/30UE,Surplus or Deficit on Trading,Reactive Repair & Maintenance,2020,To carry out pot hole repairs on the track running down to the cricket club and to carry out repairs on the car park directly outside the club,27/05/2022,0000478797,200.00,Revenue,RED ROSE BUILDING MAINTENANCE,
South Ribble Borough Council,http://statistics.data.gov.uk/id/local-authority/30UE,Surplus or Deficit on Trading,Reactive Repair & Maintenance,2020,LABOUR,27/05/2022,0000478797,250.00,Revenue,RED ROSE BUILDING MAINTENANCE,
South Ribble Borough Council,http://statistics.data.gov.uk/id/local-authority/30UE,Community Development,Room Hire,2402,Removal of `HAF` Food from the Civic into storage,27/05/2022,0000478816,500.00,Revenue,RED ROSE BUILDING MAINTENANCE,
South Ribble Borough Council,http://statistics.data.gov.uk/id/local-authority/30UE,Community Development,Room Hire,2402,MATERIALS,27/05/2022,0000478816,100.00,Revenue,RED ROSE BUILDING MAINTENANCE,
South Ribble Borough Council,http://statistics.data.gov.uk/id/local-authority/30UE,Community Development,Room Hire and Events,4630,Storage for Holiday Hunger food,06/05/2022,0000478253,280.00,Revenue,Red Rose Self Storage Limited,
South Ribble Borough Council,http://statistics.data.gov.uk/id/local-authority/30UE,Central Support Services,External Contractors Charges,4570,Parts supplied to overhaul YE19 JPW JFC18306,13/05/2022,0000478389,"3,761.30",Revenue,Refuse Vehicle Parts,
South Ribble Borough Council,http://statistics.data.gov.uk/id/local-authority/30UE,Central Support Services,Materials General,4040,2x wiring looms GO53,13/05/2022,0000478390,432.00,Revenue,Refuse Vehicle Parts,
South Ribble Borough Council,http://statistics.data.gov.uk/id/local-authority/30UE,Central Support Services,Materials General,4040,1 x PTO Screen YD19 AUM JFC18158,13/05/2022,0000478413,"1,111.25",Revenue,Refuse Vehicle Parts,
South Ribble Borough Council,http://statistics.data.gov.uk/id/local-authority/30UE,Central Support Services,Materials General,4040,1x Right hand top cover Bin No GO39,13/05/2022,0000478416,156.11,Revenue,Refuse Vehicle Parts,
South Ribble Borough Council,http://statistics.data.gov.uk/id/local-authority/30UE,Central Support Services,Materials General,4040,2x Banjo Aire Fitting - Bin GO49,13/05/2022,0000478416,52.00,Revenue,Refuse Vehicle Parts,
South Ribble Borough Council,http://statistics.data.gov.uk/id/local-authority/30UE,Central Support Services,Materials General,4040,3x Barrier Arms G015,13/05/2022,0000478416,336.85,Revenue,Refuse Vehicle Parts,
South Ribble Borough Council,http://statistics.data.gov.uk/id/local-authority/30UE,Central Support Services,Materials General,4040,1x Sensor Bin Location GO10,13/05/2022,0000478416,180.57,Revenue,Refuse Vehicle Parts,
South Ribble Borough Council,http://statistics.data.gov.uk/id/local-authority/30UE,Central Support Services,Materials General,4040,4x Bin lift Clamp Arm Pin GO47,13/05/2022,0000478416,92.34,Revenue,Refuse Vehicle Parts,
South Ribble Borough Council,http://statistics.data.gov.uk/id/local-authority/30UE,Central Support Services,Materials General,4040,1x Hydraulic Lift Ram Chair GO26,13/05/2022,0000478416,747.19,Revenue,Refuse Vehicle Parts,
South Ribble Borough Council,http://statistics.data.gov.uk/id/local-authority/30UE,Central Support Services,Materials General,4040,1x Inductive Analogue Sensor GO19,13/05/2022,0000478416,51.58,Revenue,Refuse Vehicle Parts,
South Ribble Borough Council,http://statistics.data.gov.uk/id/local-authority/30UE,Central Support Services,Materials General,4040,Parts supplied to overhaul back end YD19 ATZ JFC18246,13/05/2022,0000478458,"3,888.16",Revenue,Refuse Vehicle Parts,
South Ribble Borough Council,http://statistics.data.gov.uk/id/local-authority/30UE,Central Support Services,Materials General,4040,po used on previous invoice that is cancelled out by credit,13/05/2022,0000478580,442.80,Revenue,Refuse Vehicle Parts,
South Ribble Borough Council,http://statistics.data.gov.uk/id/local-authority/30UE,Short Term Creditors,Manual Control,0001,,06/05/2022,0000478323,333.37,Revenue,REMSYS LIMITED,
South Ribble Borough Council,http://statistics.data.gov.uk/id/local-authority/30UE,Non Domestic Rates Redistribut,Levy to Business Rates Pool,4994,annual charge,27/05/2022,0000478624,"1,818.18",Revenue,Ribble Valley Borough Council,
South Ribble Borough Council,http://statistics.data.gov.uk/id/local-authority/30UE,Non Domestic Rates Redistribut,Levy to Business Rates Pool,4994,brates 10% ret,27/05/2022,0000478624,"128,101.00",Revenue,Ribble Valley Borough Council,
South Ribble Borough Council,http://statistics.data.gov.uk/id/local-authority/30UE,Community Development,Professional Fees,4510,Climbing Wall Hire for Easter HAF between Monday 11th April � Thursday 14th April.,13/05/2022,0000478219,975.00,Revenue,RiderEvolution Ltd,
South Ribble Borough Council,http://statistics.data.gov.uk/id/local-authority/30UE,Local Tax Collection,Postage General,4291,PO BOX DELIVERY ANNUAL FEE 2022,20/05/2022,0000478678,300.00,Revenue,ROYAL MAIL GROUP PLC,
South Ribble Borough Council,http://statistics.data.gov.uk/id/local-authority/30UE,Capital,Cap Contract Payment,C230,"McKenzie Arms, Bamber Bridge (Housing Development)",13/05/2022,0000478551,"253,322.73",Revenue,RP Tyson Construction Ltd,
South Ribble Borough Council,http://statistics.data.gov.uk/id/local-authority/30UE,Economic Development,Reactive Repair & Maintenance,2020,Duct and Canopy clean at Leyland Market as per NAME REDACTED,27/05/2022,0000478488,345.00,Revenue,Rydel Hygiene Ltd,
South Ribble Borough Council,http://statistics.data.gov.uk/id/local-authority/30UE,Recreation & Sport,Dev ftarget Sports-Coaching,4894,"4 x Bilbao Fabric Operators Chair, 5 x Jote High Back Operator Chair with no arms",20/05/2022,0000478459,"1,132.00",Revenue,Rytetype Limited,
South Ribble Borough Council,http://statistics.data.gov.uk/id/local-authority/30UE,Regulatory Services,Operational Equip & Tools,4010,,30/05/2022,0000478180,2.50,Revenue,S R B C,
South Ribble Borough Council,http://statistics.data.gov.uk/id/local-authority/30UE,Regulatory Services,Operational Equip & Tools,4010,,30/05/2022,0000478180,22.00,Revenue,S R B C,
South Ribble Borough Council,http://statistics.data.gov.uk/id/local-authority/30UE,Regulatory Services,Operational Equip & Tools,4010,,30/05/2022,0000478180,1.80,Revenue,S R B C,
South Ribble Borough Council,http://statistics.data.gov.uk/id/local-authority/30UE,Central Support Services,Stationery General,4130,,30/05/2022,0000478180,4.00,Revenue,S R B C,
South Ribble Borough Council,http://statistics.data.gov.uk/id/local-authority/30UE,Recreation & Sport,Dev ftarget Sports-Coaching,4894,,30/05/2022,0000478180,9.80,Revenue,S R B C,
South Ribble Borough Council,http://statistics.data.gov.uk/id/local-authority/30UE,Other Welfare Services,Materials General,4040,,30/05/2022,0000478180,90.00,Revenue,S R B C,
South Ribble Borough Council,http://statistics.data.gov.uk/id/local-authority/30UE,Other Welfare Services,Materials General,4040,,30/05/2022,0000478180,6.50,Revenue,S R B C,
South Ribble Borough Council,http://statistics.data.gov.uk/id/local-authority/30UE,Homelessness,Contributions to Other Bodies,4730,,30/05/2022,0000478180,15.00,Revenue,S R B C,
South Ribble Borough Council,http://statistics.data.gov.uk/id/local-authority/30UE,Open Spaces,Office Requisites,4136,,30/05/2022,0000478180,20.00,Revenue,S R B C,
South Ribble Borough Council,http://statistics.data.gov.uk/id/local-authority/30UE,Central Support Services,Materials General,4040,,30/05/2022,0000478180,17.64,Revenue,S R B C,
South Ribble Borough Council,http://statistics.data.gov.uk/id/local-authority/30UE,Open Spaces,Materials General,4040,,30/05/2022,0000478180,4.98,Revenue,S R B C,
South Ribble Borough Council,http://statistics.data.gov.uk/id/local-authority/30UE,Open Spaces,Petrol,3131,,30/05/2022,0000478180,6.54,Revenue,S R B C,
South Ribble Borough Council,http://statistics.data.gov.uk/id/local-authority/30UE,Central Support Services,Office Requisites,4136,,30/05/2022,0000478180,3.32,Revenue,S R B C,
South Ribble Borough Council,http://statistics.data.gov.uk/id/local-authority/30UE,Central Support Services,Materials General,4040,,30/05/2022,0000478180,16.67,Revenue,S R B C,
South Ribble Borough Council,http://statistics.data.gov.uk/id/local-authority/30UE,Homelessness,Contributions to Other Bodies,4730,,30/05/2022,0000478180,152.69,Revenue,S R B C,
South Ribble Borough Council,http://statistics.data.gov.uk/id/local-authority/30UE,Central Support Services,External Contractors Charges,4570,Annual Service PWR08LH JFC18248,20/05/2022,0000478460,169.15,Revenue,Saanro International Ltd,
South Ribble Borough Council,http://statistics.data.gov.uk/id/local-authority/30UE,Central Support Services,External Contractors Charges,4570,Annual Service PWR09RH JFC18249,20/05/2022,0000478460,169.15,Revenue,Saanro International Ltd,
South Ribble Borough Council,http://statistics.data.gov.uk/id/local-authority/30UE,Central Support Services,Materials General,4040,1000 litres Premium Hi-Foaming TFR with Wax,20/05/2022,0000478463,"1,020.43",Revenue,Saanro International Ltd,
South Ribble Borough Council,http://statistics.data.gov.uk/id/local-authority/30UE,Capital,Cap Contract Payment,C230,RIBA Stage 3 - Extra Care Project (West Paddock),13/05/2022,0000477979,"3,707.00",Revenue,SDA Consulting LLP,
South Ribble Borough Council,http://statistics.data.gov.uk/id/local-authority/30UE,Central Support Services,Intruder Alarm,2035,Key Holding / Alarm Response for Hurst Grange Park Coach House to cover April 2022 to 31st March 2023 as per NAME REDACTED,27/05/2022,0000478461,365.00,Revenue,SECTOR SECURITY SERVICES LTD,
South Ribble Borough Council,http://statistics.data.gov.uk/id/local-authority/30UE,Central Support Services,Agency Staff,1121,COST OF ENGAGING AGENCY LO9CUM SOLICITOR FRO 4 DAYS PER WEEK - EXTENDED TO 15 APRIL 2022,13/05/2022,0000478422,"2,142.06",Revenue,SELLICK PARTNERSHIP LTD,
South Ribble Borough Council,http://statistics.data.gov.uk/id/local-authority/30UE,Development Control,Operational Equip & Tools,4010,Yearly lease and asset protection of HP XL-3600 Wide Format Printer plotter,13/05/2022,0000478245,"1,015.29",Revenue,Siemens Financial Services Limited,
South Ribble Borough Council,http://statistics.data.gov.uk/id/local-authority/30UE,Surplus or Deficit on Trading,Reactive Repair & Maintenance,2020,Worden park Pavilion(6) Cleaning to be done as per NAME REDACTED request to be carried on 10th May 2022,13/05/2022,0000478550,528.00,Revenue,South Ribble Cleaning Services T/A CoxheadCleaning,
South Ribble Borough Council,http://statistics.data.gov.uk/id/local-authority/30UE,Community Development,Room Hire,2402,Room rental for mental health first aid course,06/05/2022,0000478339,293.00,Revenue,ST AMBROSE CHURCH HALL,
South Ribble Borough Council,http://statistics.data.gov.uk/id/local-authority/30UE,Capital,Capital Grant,C570,DFG WORK TO SUPPLY AND INSTALL A STAIRLIFT  AT   ADDRESS REDACTED  AS PER QUOTE SUPPLIED ,06/05/2022,0000478209,"4,946.60",Revenue,Stannah Lift Services Ltd,
South Ribble Borough Council,http://statistics.data.gov.uk/id/local-authority/30UE,Capital,Capital Grant,C570,DFG WORK TO SUPPLY AND INSTALL A STAIRLIFT  AT   ADDRESS REDACTED  AS PER QUOTE SUPPLIED ,13/05/2022,0000478549,"7,820.75",Revenue,Stannah Lift Services Ltd,
South Ribble Borough Council,http://statistics.data.gov.uk/id/local-authority/30UE,Capital,Capital Grant,C570,DFG WORK TO SUPPLY AND INSTALL A STAIRLIFT  AT   ADDRESS REDACTED  AS PER QUOTE SUPPLIED ,20/05/2022,0000478698,"6,081.00",Revenue,Stannah Lift Services Ltd,
South Ribble Borough Council,http://statistics.data.gov.uk/id/local-authority/30UE,Capital,Capital Grant,C570,DFG WORK TO SUPPLY AND INSTALL A STAIRLIFT  AT   ADDRESS REDACTED  AS PER QUOTE SUPPLIED ,27/05/2022,0000478735,"3,340.00",Revenue,Stannah Lift Services Ltd,
South Ribble Borough Council,http://statistics.data.gov.uk/id/local-authority/30UE,Capital,Cap Contract Payment,C230,"Provision of Mechanical, Electrical and Plumbing Services to RIBA Stage 3 for the Leyland Town Deal Development",13/05/2022,0000478334,"13,012.50",Revenue,STEVEN A HUNT & ASSOCIATES LTD,
South Ribble Borough Council,http://statistics.data.gov.uk/id/local-authority/30UE,Community Development,External Catering Charges,4575,Lunch boxes for Easter Camps for HAF,27/05/2022,0000478585,"5,200.00",Revenue,Style Catering,
South Ribble Borough Council,http://statistics.data.gov.uk/id/local-authority/30UE,Democratic Represent and  Mgnt,External Catering Charges,4575,Full council 16th March 22 - 55 covers one without cheese,20/05/2022,0000478591,300.00,Revenue,Style Catering,
South Ribble Borough Council,http://statistics.data.gov.uk/id/local-authority/30UE,Central Support Services,Planned Annual Repair & Maintenance,2021,Annual Contract for 2021/2022 for the moveable walls x 2  Moveo  -  2 service visits per year  in the Civic Suite ,06/05/2022,0000478191,500.00,Revenue,STYLE MOVEABLE PARTITION SPECIALISTS,
South Ribble Borough Council,http://statistics.data.gov.uk/id/local-authority/30UE,Central Support Services,Materials General,4040,"1x emergency stop button, 1x button station, 1x marker lamp, 1x barrier arm hinge, VU60 HLE, JFC18350 (Sam)",20/05/2022,0000478496,310.37,Revenue,Taylor Enginering & Fabrications Ltd,
South Ribble Borough Council,http://statistics.data.gov.uk/id/local-authority/30UE,Central Support Services,Materials General,4040,Wiring loom VX18 KLC JFC 18333,20/05/2022,0000478664,432.21,Revenue,TERBERG MATEC UK LTD,
South Ribble Borough Council,http://statistics.data.gov.uk/id/local-authority/30UE,Central Support Services,Materials General,4040,"1x grey panel, 1x decol, 1x mounting support bracket, 1x button station bracket, VU60 HLE, JFC18350 (Sam)",20/05/2022,0000478665,739.48,Revenue,TERBERG MATEC UK LTD,
South Ribble Borough Council,http://statistics.data.gov.uk/id/local-authority/30UE,Central Support Services,External Contractors Charges,4570,1 Spec Repair to Bin Lift VX18KLC JFC18333,20/05/2022,0000478697,"2,348.78",Revenue,TERBERG MATEC UK LTD,
South Ribble Borough Council,http://statistics.data.gov.uk/id/local-authority/30UE,Economic Development,Planned Annual Repair & Maintenance,2021,"2022 / 2023 service contract for 2 visits per year to the sliding doors at caf� door 1, caf� door 2, car park entrance left & right, at Leyland market",20/05/2022,0000478548,264.00,Revenue,THE AUTOMATIC DOOR COMPANY LTD,
South Ribble Borough Council,http://statistics.data.gov.uk/id/local-authority/30UE,Central Support Services,Planned Annual Repair & Maintenance,2021,"2022 / 2023 annual service contract, 2 visit per year, for the outer, middle & inner bi-part slider, the double power swing door at the civic centre",20/05/2022,0000478584,330.00,Revenue,THE AUTOMATIC DOOR COMPANY LTD,
South Ribble Borough Council,http://statistics.data.gov.uk/id/local-authority/30UE,Capital,Cap Contract Payment,C230,"Open Space Assessment - Jubilee Gardens (Extra Care, West Paddock)",13/05/2022,0000478324,"2,922.50",Revenue,The Environment Partnership (TEP) Limited,
South Ribble Borough Council,http://statistics.data.gov.uk/id/local-authority/30UE,Central Support Services,Computer Equipment,4241,Additional Stacking Cables for South Ribble Network Refresh,20/05/2022,0000477697,"1,744.66",Revenue,The Networking People (TNP) Ltd,
South Ribble Borough Council,http://statistics.data.gov.uk/id/local-authority/30UE,Central Support Services,Consultancy Fees,4541,"Total of 76.5 PS days required to support the below scope of works: Professional services Scope of works, BoM Validation and Fibre Survey ",27/05/2022,0000478424,"6,175.00",Revenue,The Networking People (TNP) Ltd,
South Ribble Borough Council,http://statistics.data.gov.uk/id/local-authority/30UE,Capital,Cap Contract Payment,C230,Leyland Town Deal Consultation Boards - 18x A1 Boards,27/05/2022,0000478723,561.00,Revenue,The Print Quarter,
South Ribble Borough Council,http://statistics.data.gov.uk/id/local-authority/30UE,Economic Development,Electricity,2303,31/1 to 30/4/22,20/05/2022,0000478479,"1,471.34",Revenue,Total Gas & power Ltd,
South Ribble Borough Council,http://statistics.data.gov.uk/id/local-authority/30UE,Central Support Services,Gas,2304,31/ to 30/4/22,20/05/2022,0000478480,"4,788.06",Revenue,Total Gas & power Ltd,
South Ribble Borough Council,http://statistics.data.gov.uk/id/local-authority/30UE,Tourism,Electricity,2303,1/4 to 30/4,20/05/2022,0000478497,"1,431.18",Revenue,Total Gas & power Ltd,
South Ribble Borough Council,http://statistics.data.gov.uk/id/local-authority/30UE,Open Spaces,Gas,2304,1/2 to 30/4,20/05/2022,0000478611,377.54,Revenue,Total Gas & power Ltd,
South Ribble Borough Council,http://statistics.data.gov.uk/id/local-authority/30UE,Central Support Services,Gas,2304,1/4 to 30/4,20/05/2022,0000478612,"1,519.53",Revenue,Total Gas & power Ltd,
South Ribble Borough Council,http://statistics.data.gov.uk/id/local-authority/30UE,Culture & Heritage,Gas,2304,1/2 to 31/4,20/05/2022,0000478613,602.23,Revenue,Total Gas & power Ltd,
South Ribble Borough Council,http://statistics.data.gov.uk/id/local-authority/30UE,Central Support Services,Electricity,2303,1/4 to 30/4,20/05/2022,0000478615,"2,709.93",Revenue,Total Gas & power Ltd,
South Ribble Borough Council,http://statistics.data.gov.uk/id/local-authority/30UE,Central Support Services,Electricity,2303,1/4 to 30/4,20/05/2022,0000478617,"2,357.99",Revenue,Total Gas & power Ltd,
South Ribble Borough Council,http://statistics.data.gov.uk/id/local-authority/30UE,Open Spaces,Electricity,2303,1/4 to 30/4,20/05/2022,0000478623,591.12,Revenue,Total Gas & power Ltd,
South Ribble Borough Council,http://statistics.data.gov.uk/id/local-authority/30UE,Open Spaces,Electricity,2303,1/2 to 30/4,20/05/2022,0000478632,663.44,Revenue,Total Gas & power Ltd,
South Ribble Borough Council,http://statistics.data.gov.uk/id/local-authority/30UE,Open Spaces,Electricity,2303,4/2 to 3/5,20/05/2022,0000478634,794.01,Revenue,Total Gas & power Ltd,
South Ribble Borough Council,http://statistics.data.gov.uk/id/local-authority/30UE,Capital,Cap Expenditure Other,C750,2021-22 DOUBLE GLAZING SCHEME FUNDS AS PER TENDER SPECIFICATIONS ,27/05/2022,0000478606,"2,651.83",Revenue,TRADE WINDOWS & CONSERVATORIES,
South Ribble Borough Council,http://statistics.data.gov.uk/id/local-authority/30UE,Capital,Cap Expenditure Other,C750,2021-22 DOUBLE GLAZING SCHEME FUNDS AS PER TENDER SPECIFICATIONS ,27/05/2022,0000478644,"2,263.67",Revenue,TRADE WINDOWS & CONSERVATORIES,
South Ribble Borough Council,http://statistics.data.gov.uk/id/local-authority/30UE,Capital,Cap Expenditure Other,C750,2021-22 DOUBLE GLAZING SCHEME FUNDS AS PER TENDER SPECIFICATIONS ,27/05/2022,0000478645,772.00,Revenue,TRADE WINDOWS & CONSERVATORIES,
South Ribble Borough Council,http://statistics.data.gov.uk/id/local-authority/30UE,Capital,Cap Expenditure Other,C750,2021-22 DOUBLE GLAZING SCHEME FUNDS AS PER TENDER SPECIFICATIONS ,27/05/2022,0000478646,772.00,Revenue,TRADE WINDOWS & CONSERVATORIES,
South Ribble Borough Council,http://statistics.data.gov.uk/id/local-authority/30UE,Capital,Cap Expenditure Other,C750,2021-22 DOUBLE GLAZING SCHEME FUNDS AS PER TENDER SPECIFICATIONS ,27/05/2022,0000478647,"2,653.17",Revenue,TRADE WINDOWS & CONSERVATORIES,
South Ribble Borough Council,http://statistics.data.gov.uk/id/local-authority/30UE,Capital,Cap Expenditure Other,C750,2021-22 DOUBLE GLAZING SCHEME FUNDS AS PER TENDER SPECIFICATIONS ,27/05/2022,0000478729,660.83,Revenue,TRADE WINDOWS & CONSERVATORIES,
South Ribble Borough Council,http://statistics.data.gov.uk/id/local-authority/30UE,Economic Development,Miscellaneous Expenses,4851,"Marketing for MITP - 8 x Management Fee, Domain purchase & protection, Paid ads, Contingency funds",27/05/2022,0000478683,750.00,Revenue,UK Media Events Ltd,
South Ribble Borough Council,http://statistics.data.gov.uk/id/local-authority/30UE,Economic Development,Miscellaneous Expenses,4851,,27/05/2022,0000478683,368.51,Revenue,UK Media Events Ltd,
South Ribble Borough Council,http://statistics.data.gov.uk/id/local-authority/30UE,Economic Development,Miscellaneous Expenses,4851,"Marketing for MITP - 8 x Management Fee, Domain purchase & protection, Paid ads, Contingency funds",27/05/2022,0000478696,750.00,Revenue,UK Media Events Ltd,
South Ribble Borough Council,http://statistics.data.gov.uk/id/local-authority/30UE,Economic Development,Miscellaneous Expenses,4851,,27/05/2022,0000478696,"1,361.95",Revenue,UK Media Events Ltd,
South Ribble Borough Council,http://statistics.data.gov.uk/id/local-authority/30UE,Economic Development,Miscellaneous Expenses,4851,"Music in the Park/Leyland Festival , Staging Infrastructure, Power Provision, Sound, Lighting, Video, Plant, Services",27/05/2022,0000478724,"13,403.75",Revenue,UK Media Events Ltd,
South Ribble Borough Council,http://statistics.data.gov.uk/id/local-authority/30UE,Corporate Management,Miscellaneous Expenses,4851,2% Admin Fee,13/05/2022,0000478477,-35.90,Revenue,Unison,
South Ribble Borough Council,http://statistics.data.gov.uk/id/local-authority/30UE,Corporate Management,Miscellaneous Expenses,4851,2% Admin Fee,27/05/2022,0000478824,-35.62,Revenue,Unison,
South Ribble Borough Council,http://statistics.data.gov.uk/id/local-authority/30UE,Central Support Services,Planned Annual Repair & Maintenance,2021,REFRIGERATION MAINTENANCE CONTRACT  2022/2023 as per NAME REDACTED,06/05/2022,0000478254,"1,050.00",Revenue,UNIVERSAL COOLING LTD,
South Ribble Borough Council,http://statistics.data.gov.uk/id/local-authority/30UE,Central Support Services,Planned Annual Repair & Maintenance,2021,Annual Contract for Maintenance 2022 - 2023 ,06/05/2022,0000478255,"2,311.80",Revenue,UNIVERSAL COOLING LTD,
South Ribble Borough Council,http://statistics.data.gov.uk/id/local-authority/30UE,Central Support Services,Planned Annual Repair & Maintenance,2021,Annual Contract  for maintenance 2022 - 2023 Moss Side Depot,06/05/2022,0000478255,242.50,Revenue,UNIVERSAL COOLING LTD,
South Ribble Borough Council,http://statistics.data.gov.uk/id/local-authority/30UE,Surplus or Deficit on Trading,Planned Annual Repair & Maintenance,2021,Annual Contract for maintenance 2022 - 2023 Worden Park - This property is under review as not currently in use,06/05/2022,0000478255,242.50,Revenue,UNIVERSAL COOLING LTD,
South Ribble Borough Council,http://statistics.data.gov.uk/id/local-authority/30UE,Democratic Represent and  Mgnt,Cost of Drinks,4311,Fair trade coffee beans and granulated coffee April 22,06/05/2022,0000478299,340.60,Revenue,VENDING ENTERPRISES,
South Ribble Borough Council,http://statistics.data.gov.uk/id/local-authority/30UE,Central Support Services,Reactive Repair & Maintenance,2020,"Annual Contract 2022/2023 for the sanitization of  water coolers x  7 machines at Civic Centre West Paddock Leyland, PR25 1DH",13/05/2022,0000478545,900.00,Revenue,VENDING ENTERPRISES,
South Ribble Borough Council,http://statistics.data.gov.uk/id/local-authority/30UE,Central Support Services,Agency Staff,1121,COST OF ENGAGING LOCUM SOLICITOR NAME REDACTED - CONTRACT BEGINS 6 MAY 2022,27/05/2022,0000478877,387.45,Revenue,VENN GROUP LTD,
South Ribble Borough Council,http://statistics.data.gov.uk/id/local-authority/30UE,Surplus or Deficit on Trading,Agency Staff,1121,To offer an Interim Estates Surveyor position  to NAME REDACTED to provide professions surveying services for the duration of the contract,20/05/2022,0000478316,"3,149.00",Revenue,Vivid Resourcing,
South Ribble Borough Council,http://statistics.data.gov.uk/id/local-authority/30UE,Surplus or Deficit on Trading,Agency Staff,1121,To offer an Interim Estates Surveyor position  to NAME REDACTED to provide professions surveying services for the duration of the contract,27/05/2022,0000478750,"1,504.00",Revenue,Vivid Resourcing,
South Ribble Borough Council,http://statistics.data.gov.uk/id/local-authority/30UE,Central Support Services,Franked Post,4292,SRBC - Daily mail collections for all outgoing mail 3pm onwards,20/05/2022,0000478208,597.07,Revenue,WHISTL  UK LTD,
South Ribble Borough Council,http://statistics.data.gov.uk/id/local-authority/30UE,Central Support Services,Franked Post,4292,SRBC - Daily mail collections for all outgoing mail 3pm onwards,20/05/2022,0000478393,497.69,Revenue,WHISTL  UK LTD,
South Ribble Borough Council,http://statistics.data.gov.uk/id/local-authority/30UE,Capital,Cap Contract Payment,C230,STRUCTURAL AND DRAINAGE SERVICES TO RIBA STAGE 3 FOR THE LEYLAND TOWN DEAL DEVELOPMENT,20/05/2022,0000478414,"16,846.55",Revenue,Woolgar Hunter Limited,
South Ribble Borough Council,http://statistics.data.gov.uk/id/local-authority/30UE,Capital,Cap Contract Payment,C230,Stage 2 - Intrusive Investigation strategy (Heatons/Iddons Sites) - Leyland Town Deal Project,20/05/2022,0000478414,"3,000.00",Revenue,Woolgar Hunter Limited,
South Ribble Borough Council,http://statistics.data.gov.uk/id/local-authority/30UE,Capital,Capital Grant,C570,DFG WORK FOR ADAPTATION FOR LEVEL ACCESS SHOWER  AT ADDRESS REDACTED AS PER SRBC PLANS AND QUOTE ,06/05/2022,0000478207,"1,657.35",Revenue,Wright Build Limited,
South Ribble Borough Council,http://statistics.data.gov.uk/id/local-authority/30UE,Capital,Capital Grant,C570,DFG WORK FOR ADAPTATION FOR LEVEL ACCESS SHOWER AT ADDRESS REDACTED  AS PER SRBC PLANS AND QUOTE,20/05/2022,0000478695,"2,535.06",Revenue,Wright Build Limited,
South Ribble Borough Council,http://statistics.data.gov.uk/id/local-authority/30UE,Capital,Capital Grant,C570,DFG WORK FOR ADAPTATION TO LEVEL ACCESS SHOWER AT ADDRESS REDACTED AS  PER SRBC SPECIFICATION AND QUOTE,27/05/2022,0000478732,"2,031.50",Revenue,Wright Build Limited,
South Ribble Borough Council,http://statistics.data.gov.uk/id/local-authority/30UE,Development Control,Consultancy Fees,4541,"Consultancy advice - Tomlinson Road, Leyland",20/05/2022,0000478544,"2,750.00",Revenue,WSP UK Ltd,
South Ribble Borough Council,http://statistics.data.gov.uk/id/local-authority/30UE,Central Support Services,Computer Software,4242,SO0014259 - REWARD LICENCE - ANNUAL CHARGES - CHARGE PERIOD 29/09/2021 - 28/09/2022,13/05/2022,0000478481,"3,630.00",Revenue,ZELLIS UK LTD,
